Cogmind - Beta 11.1 @@@ ROGUE MODE // 2022.07.19 @ 21:22:40 Player: maxwell Result: Self-destructed Performance ------------- Evolutions (9) 4500 Regions Visited (33) 6600 Robots Destroyed (320) 1600 Value Destroyed (21171) 21171 Prototype IDs (39) 780 Alien Tech Used (0) 0 Bonus (11677) 11677 TOTAL SCORE: 46328 Bonus ------- High Alert Combat Kills 1294 Follower Combat Kills 4808 Entered Garrisons 2400 Used RIF Installer 6000 Aligned with FarCom 300 Friendly Fire -3125 Cogmind --------- Core Integrity 1298/1600 Matter 300/300 Energy 325/325 System Corruption 0% Temperature Cool (0) Movement Treading (250) Ox1 Location -1/Access Parts ------- > --- POWER (2) -------- Reinforced Antimatter Reactor > --- PROPULSION (4) --- Advanced Heavy Siege Treads > --- UTILITY (16) ----- Huge Storage Unit Advanced Launcher Guidance Computer Relay Coupler [NC] (15) Relay Coupler [C] (14) Relay Coupler [Specialist] (18) Relay Coupler [Hunter] (1) Relay Coupler [Behemoth] (1) Improved Dynamic Insulation System Improved Dynamic Insulation System Advanced Corruption Screen > --- WEAPON (3) ------- Vibroblade Vibroblade Vibroblade > --- INVENTORY (25) --- Experimental Matter Compressor (500) Relay Coupler [NC] (33) Relay Coupler [C] (31) Relay Coupler [C] (43) Relay Coupler [C] (37) Relay Coupler [C] (36) Relay Coupler [C] (52) Relay Coupler [C] (54) Relay Coupler [C] (54) Relay Coupler [Cutter] (39) Relay Coupler [Sentry] (29) Relay Coupler [Sentry] (25) Relay Coupler [Sentry] (31) Relay Coupler [Specialist] (23) Relay Coupler [Specialist] (24) Relay Coupler [Hunter] (22) Relay Coupler [Behemoth] (10) Trap Reconfigurator Advanced Remote Datajack Peak State ------------ > --- POWER ------------ Reinforced Antimatter Reactor Light Quantum Reactor > --- PROPULSION ------- Advanced Heavy Siege Treads Advanced Heavy Siege Treads > --- UTILITY ---------- Huge Storage Unit Advanced Launcher Guidance Computer Advanced Target Analyzer Advanced Phase Shifter Relay Coupler [NC] Relay Coupler [C] Relay Coupler [C] Relay Coupler [C] Relay Coupler [C] Relay Coupler [Sentry] Relay Coupler [Demolisher] Relay Coupler [Specialist] Relay Coupler [Hunter] Relay Coupler [Behemoth] Improved Dynamic Insulation System Advanced Corruption Screen > --- WEAPON ----------- Enhanced Nova Cannon Micro-nuke Launcher Advanced Remote Datajack > --- INVENTORY -------- Improved Heavy Treads Advanced Heavy Siege Treads Advanced Heat Sink Experimental Matter Compressor Antimissile System Relay Coupler [NC] Relay Coupler [C] Relay Coupler [C] Relay Coupler [C] Relay Coupler [Cutter] Relay Coupler [Sentry] Relay Coupler [Sentry] Relay Coupler [Sentry] Relay Coupler [Specialist] Relay Coupler [Specialist] Relay Coupler [Hunter] Trap Reconfigurator Advanced Remote Datajack Advanced Remote Datajack Vibroblade Vibroblade Vibroblade [Rating: 188] Favorites ----------- Power Neutrino Core Engine Angular Momentum Engine Power Core Neutrino Core Reactor Quantum Reactor Propulsion Light Treads Treads Light Treads Leg Flexi-carbon Leg Wheel Armored Huge Wheel Utility Huge Storage Unit Device Advanced Heat Sink Storage Huge Storage Unit Processor Advanced Launcher Guidance Computer Hackware Relay Coupler [Grunt] Protection Hardened Heavy Armor Plating Weapon Vibroblade Energy Gun Dispersion Rifle Energy Cannon Enhanced Nova Cannon Ballistic Gun Precision Assault Rifle Ballistic Cannon Linear Accelerator Launcher Improved Grenade Launcher Special Weapon Remote Datajack Impact Weapon Powered Hammer Slashing Weapon Vibroblade Piercing Weapon Force Lance Special Melee Weapon Improved Datajack Build | -11 -10 -10 -9 -9 -9 -8 -8 -8 -8 -8 -7 -7 -6 -6 -6 -6 -5 -5 -5 -5 -4 -4 -4 -4 -3 -3 -3 -3 -2 -2 -1 -1 -1 ------- Run | Scr Mat Min Mat Min Exi Min Mat Gar Mat Gar Fac Gar Fac Gar Fac Gar Fac Gar Fac Gar Fac Was Fac Gar Res Gar Res Gar Res Gar Acc Gar Acc Slots Evolved 18 | . . . 2 . . . 2 . . . 2 . 2 . . . 2 . . . 2 . . . 2 . . . 2 . 2 . . Power 1 | . . . . . . . . . . . . . . . . . . . . . 1 . . . . . . . . . . . . Propulsion 2 | . . . . . . . . . . . 1 . . . . . . . . . 1 . . . . . . . . . . . . Utility 14 | . . . 2 . . . 2 . . . . . 2 . . . 2 . . . . . . . 2 . . . 2 . 2 . . Weapon 1 | . . . . . . . . . . . 1 . . . . . . . . . . . . . . . . . . . . . . Parts Attached 551 | 6 2 4 23 4 . . 6 11 9 11 22 53 17 23 24 32 9 45 17 13 1 2 17 34 6 9 3 14 85 18 8 16 7 Power 38 | 1 . . 3 . . . 1 1 . 1 1 4 1 . 2 1 . 3 . . . . 2 3 3 . . . 8 2 . 1 . Engine 9 | 1 . . 3 . . . 1 . . 1 . 1 1 . 1 . . . . . . . . . . . . . . . . . . Core 14 | . . . . . . . . 1 . . 1 3 . . 1 1 . 3 . . . . . 2 2 . . . . . . . . Reactor 15 | . . . . . . . . . . . . . . . . . . . . . . . 2 1 1 . . . 8 2 . 1 . Propulsion 81 | 2 . 2 6 2 . . 2 1 . 2 1 9 1 3 7 6 . 6 2 . 1 . . 2 2 . . 2 16 2 2 1 1 Treads 59 | 2 . . 3 2 . . 2 1 . 2 . 5 1 . 7 3 . 4 1 . . . . 2 2 . . 2 14 2 2 1 1 Leg 13 | . . . . . . . . . . . . 4 . 3 . 3 . 2 . . . . . . . . . . 1 . . . . Wheel 9 | . . 2 3 . . . . . . . 1 . . . . . . . 1 . 1 . . . . . . . 1 . . . . Hover . | . . . . . . . . . . . . . . . . . . . . . . . . . . . . . . . . . . Flight . | . . . . . . . . . . . . . . . . . . . . . . . . . . . . . . . . . . Utility 242 | 1 2 1 8 . . . 3 5 2 5 14 16 6 16 6 16 6 19 11 10 . 2 6 21 . 4 1 5 33 6 6 10 1 Device 126 | . 2 . 3 . . . 1 4 . 3 9 7 3 3 6 1 4 11 7 7 . 2 3 12 . . 1 4 21 2 2 7 1 Storage 14 | 1 . . 2 . . . . . 1 . . 2 1 . . 1 . . . . . . . 3 . . . . 3 . . . . Processor 14 | . . . 2 . . . 1 1 . . . . . . . . . . . 1 . . . 1 . . . . 7 1 . . . Hackware 70 | . . . . . . . . . 1 . 2 3 2 13 . 12 2 8 4 2 . . 1 4 . 4 . 1 2 2 4 3 . Protection 18 | . . 1 1 . . . 1 . . 2 3 4 . . . 2 . . . . . . 2 1 . . . . . 1 . . . Artifact . | . . . . . . . . . . . . . . . . . . . . . . . . . . . . . . . . . . Weapon 190 | 2 . 1 6 2 . . . 4 7 3 6 24 9 4 9 9 3 17 4 3 . . 9 8 1 5 2 7 28 8 . 4 5 Energy Gun 22 | . . 1 1 . . . . 2 1 . 1 3 . . . . . 3 2 . . . 5 . . 1 . . 1 1 . . . Energy Cannon 26 | . . . 1 . . . . . 3 1 1 1 . . . . . . . . . . . 1 . 2 2 6 5 2 . 1 . Ballistic Gun 22 | 2 . . . . . . . 2 . . 2 . 3 . 7 1 1 4 . . . . . . . . . . . . . . . Ballistic Cannon 1 | . . . . . . . . . . . . . . . . . . . . . . . . 1 . . . . . . . . . Launcher 22 | . . . . 1 . . . . . 2 . 7 . 1 1 1 1 1 . 1 . . 2 2 . 1 . . . . . 1 . Special Weapon 39 | . . . . . . . . . . . 1 2 2 1 . 3 1 5 1 . . . 1 3 1 1 . 1 9 3 . 2 2 Impact Weapon 19 | . . . . . . . . . 1 . . 4 4 2 1 4 . 2 1 . . . . . . . . . . . . . . Slashing Weapon 32 | . . . 4 1 . . . . 1 . 1 7 . . . . . . . . . . . . . . . . 13 2 . . 3 Piercing Weapon 6 | . . . . . . . . . . . . . . . . . . 2 . 2 . . 1 1 . . . . . . . . . Special Melee Weapon 1 | . . . . . . . . . 1 . . . . . . . . . . . . . . . . . . . . . . . . Unidentified Prototypes 16 | . . . 2 . . . . . 1 . 1 . 1 . 1 . . . . . . 1 . . . . 1 . 8 . . . . Corrupted Parts 4 | . . . . 1 . . . . . 3 . . . . . . . . . . . . . . . . . . . . . . . System Corruption 17 | . . . . 5 . . . . . 12 . . . . . . . . . . . . . . . . . . . . . . . Parts Lost 132 | . . 6 9 . . . . 4 1 5 8 9 1 2 8 12 1 9 2 2 . . . 10 1 1 . 6 13 6 . 4 12 Power 17 | . . 1 2 . . . . 1 . 1 1 2 . . 1 1 . 1 . . . . . 2 . . . 1 1 . . 1 1 Propulsion 43 | . . 2 5 . . . . 1 . 2 3 5 1 2 1 4 . 4 . . . . . 2 1 . . 2 5 1 . . 2 Utility 42 | . . . 2 . . . . 2 . . 2 1 . . 3 5 1 2 1 . . . . 4 . . . 1 7 4 . 2 5 Weapon 30 | . . 3 . . . . . . 1 2 2 1 . . 3 2 . 2 1 2 . . . 2 . 1 . 2 . 1 . 1 4 Highest Loss Streak 9 | . . 3 5 . . . . 2 1 3 7 5 1 1 5 6 1 3 2 2 . . . 9 1 1 . 3 3 4 . 3 7 To Critical Strikes 2 | . . . . . . . . . . . . . . . . . . . . . . . . . . . . . . . . . 2 Average Slot Usage (%) 85 | . 92 82 97 94 88 88 80 95 89 88 90 77 88 85 88 83 89 80 92 75 78 84 83 83 82 92 95 87 87 84 83 90 87 Engine 2 | . 14 5 10 11 11 11 9 5 . 1 4 4 6 6 3 . . . . . . . . . . . . . . . . . . Core 2 | . . . . . . . . 3 9 7 2 2 . . 2 5 5 4 5 5 5 5 2 4 3 4 4 2 . . . . . Reactor 2 | . . . . . . . . . . . . . . . . . . . . . . . 4 5 4 4 4 4 7 7 8 7 7 Treads 10 | . 28 11 17 21 22 22 18 17 18 17 14 16 20 10 18 10 . 1 11 . . . . 7 11 14 14 14 8 7 8 7 7 Leg 2 | . . . . . . . . . . . . 5 . 4 . 6 17 11 . . . . . . . . . . . . . . . Device 9 | . 6 6 11 . . . 3 12 18 18 15 8 10 1 8 . 4 11 16 6 10 15 11 16 14 14 14 13 13 7 11 11 22 Storage 6 | . 14 14 11 11 11 11 9 9 9 9 7 6 7 6 6 5 5 5 5 5 5 5 5 6 9 9 9 9 7 5 4 4 4 Processor 5 | . . . 15 22 22 22 22 23 18 16 7 . . . . . . . . . 5 5 4 1 4 4 4 4 13 17 12 11 8 Hackware 19 | . . . . . . . . . . . 2 3 16 29 26 33 30 20 32 34 26 26 26 21 19 26 28 23 21 20 28 34 27 Protection 3 | . . 7 4 11 11 11 9 6 . 3 11 7 6 5 . 1 5 3 . . . . 1 1 . . . . . 2 4 . . Energy Gun 2 | . . 12 . . . . . 11 10 7 . 1 4 . . . . 10 10 6 . . 3 2 . . . . . . . . . Energy Cannon 1 | . . . . . . . . . 3 2 5 . . . . . . . . . . . . 3 4 3 4 6 3 2 . 3 3 Ballistic Gun 1 | . 28 13 . . . . . 5 . . 12 . 3 . 13 2 7 1 . . . . . . . . . . . . . . . Launcher 1 | . . . . 4 . . . . . 2 . 1 3 4 1 . . . . 2 5 5 1 . 1 2 4 2 . . . 1 2 Special Weapon 2 | . . . . . . . . . . . . 2 1 5 1 4 3 2 3 2 . . . 2 2 3 4 2 1 3 4 4 3 Impact Weapon 2 | . . . . . . . . . . . . 4 5 6 2 11 3 . 1 . . . . . . . . . . . . . . Slashing Weapon 3 | . . . 21 13 11 11 9 . 2 3 1 11 . . . . . . . . . . . . . . . . 7 5 4 2 . Naked Turns 2 | . . . . . . . . . . . . 2 . . . . . . . . . . . . . . . . . . . . . Heaviest Build 164 | 11 12 12 34 38 35 35 37 39 92 103 128 140 127 126 109 117 117 133 119 121 121 125 130 139 146 154 153 153 164 148 148 161 161 Greatest Support 160 | 40 40 40 40 40 40 40 40 40 40 42 42 60 60 60 90 66 60 76 76 28 56 56 56 140 140 123 123 123 160 160 160 160 155 Greatest Overweight (x) 31 | . . 2 2 . . . . . 2 4 5 31 2 8 4 28 1 5 4 4 2 2 2 3 1 1 1 2 8 1 . 1 1 Average Overweight (x) 1 | . . . . . . . . . . 2 2 1 2 2 1 1 1 2 2 3 2 2 1 . . 1 1 1 . . . . . Largest Inventory Capacity 25 | 8 8 8 15 15 15 15 15 15 25 25 25 25 25 25 25 25 25 25 25 25 25 25 25 25 25 25 25 25 25 25 25 25 25 Average Capacity 23 | 6 8 8 11 15 15 15 15 15 15 25 25 24 25 25 25 23 25 25 25 25 25 25 25 25 25 25 25 25 25 25 25 25 25 Most Carried 25 | 2 2 5 15 15 15 15 15 15 19 24 25 25 25 25 25 25 23 25 25 25 22 25 25 25 22 25 25 25 25 25 25 25 25 Average Carried 21 | . 1 2 9 14 15 15 14 13 14 21 23 20 23 24 24 21 21 23 24 24 22 22 24 22 21 21 23 24 23 21 23 24 23 Final Capacity 25 | 8 8 8 15 15 15 15 15 15 25 25 25 25 25 25 25 25 25 25 25 25 25 25 25 25 25 25 25 25 25 25 25 25 25 Final Carried 25 | 1 2 5 15 15 15 15 15 15 19 23 24 23 25 25 25 24 22 25 25 24 22 25 25 22 21 24 25 24 25 24 25 25 19 Class Distribution -------------------- 54% | Botlord-Mutant 17% | Bothacker-Mutant 8% | Scavenger-Mutant 4% | Commander-Mutant 4% | Mutant 3% | Botlord-Skirmisher 3% | Scavenger-Gladiator Dominant Class ---------------- Mutant | -10/Materials Mutant | -10/Mines Scavenger-Mutant | -9/Materials Scavenger-Mutant | -9/Mines Scavenger-Gladiator | -9/Exiles Scavenger-Gladiator | -8/Mines Scavenger-Gladiator | -8/Materials Scavenger-Mutant | -8/Garrison Scavenger-Mutant | -8/Materials Bothacker-Mutant | -8/Garrison Bothacker-Mutant | -7/Factory Bothacker-Mutant | -7/Garrison Bothacker-Mutant | -6/Factory Botlord-Mutant | -6/Garrison Skirmisher | -6/Factory Botlord-Mutant | -6/Garrison Botlord-Mutant | -5/Factory Botlord-Mutant | -5/Garrison Botlord-Mutant | -5/Factory Commander-Mutant | -5/Garrison Commander-Mutant | -4/Factory Commander-Mutant | -4/Waste Commander-Mutant | -4/Factory Botlord-Mutant | -4/Garrison Botlord-Mutant | -3/Research Botlord-Mutant | -3/Garrison Botlord-Mutant | -3/Research Botlord-Mutant | -3/Garrison Botlord-Mutant | -2/Research Botlord-Mutant | -2/Garrison Botlord-Mutant | -1/Access Botlord-Mutant | -1/Garrison Botlord-Mutant | -1/Access Resources | -11 -10 -10 -9 -9 -9 -8 -8 -8 -8 -8 -7 -7 -6 -6 -6 -6 -5 -5 -5 -5 -4 -4 -4 -4 -3 -3 -3 -3 -2 -2 -1 -1 -1 ----------- Run | Scr Mat Min Mat Min Exi Min Mat Gar Mat Gar Fac Gar Fac Gar Fac Gar Fac Gar Fac Gar Fac Was Fac Gar Res Gar Res Gar Res Gar Acc Gar Acc Matter Collected 11598 | 156 180 276 204 66 . . 71 296 90 168 278 1073 102 733 395 900 127 969 206 263 . 308 211 641 136 497 . 192 1675 647 96 572 70 Remotely . | . . . . . . . . . . . . . . . . . . . . . . . . . . . . . . . . . . Salvage Created 16305 | . 353 423 1055 37 . 40 404 691 261 404 314 1269 46 63 407 526 110 784 370 661 . 675 48 595 . 644 . 779 3466 690 85 1030 75 Parts 810 | . 35 18 81 3 . 4 27 32 15 26 23 56 2 1 19 9 8 32 17 32 . 8 7 28 . 21 . 20 212 29 6 34 5 Haulers Intercepted 5 | . . . 1 . . . 1 . 1 . . . . . . . . . . . . . . . . . . . 2 . . . . Recyclers Shooed 5 | . . 1 . . . . . . . . . . 1 . . . . . . . . . . . . . . . 3 . . . . Parts Field Recycled . | . . . . . . . . . . . . . . . . . . . . . . . . . . . . . . . . . . Retrieved Matter . | . . . . . . . . . . . . . . . . . . . . . . . . . . . . . . . . . . Parts Self-Destructed . | . . . . . . . . . . . . . . . . . . . . . . . . . . . . . . . . . . Prevented . | . . . . . . . . . . . . . . . . . . . . . . . . . . . . . . . . . . Kills | -11 -10 -10 -9 -9 -9 -8 -8 -8 -8 -8 -7 -7 -6 -6 -6 -6 -5 -5 -5 -5 -4 -4 -4 -4 -3 -3 -3 -3 -2 -2 -1 -1 -1 ------- Run | Scr Mat Min Mat Min Exi Min Mat Gar Mat Gar Fac Gar Fac Gar Fac Gar Fac Gar Fac Gar Fac Was Fac Gar Res Gar Res Gar Res Gar Acc Gar Acc Combat Hostiles Destroyed 283 | . 9 6 24 2 . 3 10 13 3 15 6 29 1 3 9 11 2 18 6 11 . 3 4 14 . 8 . 9 42 7 . 14 1 Melee 96 | . . . 24 . . 3 10 . 1 . . 15 . 1 2 3 . . . 3 . . . 3 . . . . 25 4 . 1 1 Guns 70 | . 9 6 . . . . . 13 . 2 4 . 1 . 4 . 2 14 6 8 . . . 1 . . . . . . . . . Cannons 38 | . . . . . . . . . 1 2 2 . . . . . . . . . . . . 2 . 2 . 4 15 2 . 8 . AOE 56 | . . . . 2 . . . . . 11 . 14 . 1 2 1 . 2 . . . 3 4 8 . 4 . . . . . 4 . Classes Destroyed 19 | . 5 1 6 1 . . . . . . 2 . . . 2 . . . . 1 . 1 . . . . . . . . . . . Worker 13 | . 1 3 1 . . . . . . . 1 . . . 2 . . . . . . . 1 . . . . . 4 . . . . Builder 3 | . 1 . . . . . . . 1 . . . . . . . . . . . . . . . . . . . 1 . . . . Tunneler 4 | . . . 1 1 . . 1 . . . . . . . . . . . . . . . . . . . . . 1 . . . . Hauler 5 | . . . 1 . . . 1 . 1 . . . . . . . . . . . . . . . . . . . 2 . . . . Recycler 5 | . . 2 2 . . . . . . . . . . . . . . . . . . . . . . . . . 1 . . . . Mechanic 1 | . . . 1 . . . . . . . . . . . . . . . . . . . . . . . . . . . . . . Watcher 12 | . 3 . 1 . . . 2 1 1 . . . . . . . . . 1 . . . . . . . . . 3 . . . . Swarmer 71 | . 4 2 11 . . 3 7 . . 6 . 4 . 2 . . . 11 . 5 . 1 4 9 . . . . 2 . . . . Grunt 95 | . 5 4 4 . . . . 10 2 6 2 16 . . 3 8 . 1 2 5 . . . 2 . 6 . 2 4 4 . 9 . Brawler 1 | . . . 1 . . . . . . . . . . . . . . . . . . . . . . . . . . . . . . Duelist 5 | . . . 1 . . . . 1 . . . . . . . . . . . 1 . . . . . . . 1 . . . 1 . Sentry 33 | . . . 7 . . . 3 2 1 3 . 8 . . 1 1 . 4 . 1 . . . . . 1 . 1 . . . . . Specialist 6 | . . . . . . . . . . . . . . . 2 . . 2 . . . . . 1 . . . . . . 1 . . Hunter 19 | . . . . . . . . . . . 2 1 . . . 2 . . 3 . . . . . . 2 . 3 4 . . 1 1 Programmer 52 | . . . . . . . . . . . 2 . 1 1 2 . 2 . 1 . . . . 1 . . . 3 33 3 . 3 . Heavy 1 | . . . . . . . . . . . . . . . 1 . . . . . . . . . . . . . . . . . . Behemoth 4 | . . . . . . . . . . . . . . . . . . . . 1 . . . 1 . 1 . . . 1 . . . Compactor 3 | . . . . . . . . . . . . . . . . . . . . . . 3 . . . . . . . . . . . Assembled 2 | . . . . 2 . . . . . . . . . . . . . . . . . . . . . . . . . . . . . Best Kill Streak 8 | . 4 4 8 2 . 3 3 3 1 8 4 7 1 1 6 7 2 3 2 3 . 3 4 4 . 5 . 2 6 2 . 4 1 Combat Bots Only 8 | . 3 2 6 2 . 3 2 3 1 8 3 7 1 1 4 7 2 3 2 3 . 3 4 4 . 5 . 2 5 2 . 4 1 Max Kills in Single Turn 4 | . 1 1 1 1 . 1 1 1 1 3 1 4 1 1 2 1 1 1 1 1 . 2 4 2 . 2 . 1 2 1 1 2 1 Gunslinging . | . . . . . . . . . . . . . . . . . . . . . . . . . . . . . . . . . . Exploded 4 | . . . . 1 . . . . . 3 . 4 . 1 1 1 . 1 . . . 1 4 2 . 2 . . . . . 2 . Melee 2 | . . . 1 . . 1 1 . 1 . . 1 . 1 1 1 . . . 1 . . . 1 . . . . 2 1 . 1 1 Uniques/NPCs Destroyed . | . . . . . . . . . . . . . . . . . . . . . . . . . . . . . . . . . . Combat | -11 -10 -10 -9 -9 -9 -8 -8 -8 -8 -8 -7 -7 -6 -6 -6 -6 -5 -5 -5 -5 -4 -4 -4 -4 -3 -3 -3 -3 -2 -2 -1 -1 -1 -------- Run | Scr Mat Min Mat Min Exi Min Mat Gar Mat Gar Fac Gar Fac Gar Fac Gar Fac Gar Fac Gar Fac Was Fac Gar Res Gar Res Gar Res Gar Acc Gar Acc Damage Taken 29401 | . 300 623 908 62 . 20 457 914 171 367 1222 1871 216 517 1341 1941 494 1540 353 434 . . 265 2466 30 827 . 1033 5698 2284 262 1123 1662 Core 4555 | . 70 166 266 . . . 27 146 58 156 213 419 32 74 224 477 47 261 17 96 . . 15 469 . 72 . 132 560 256 43 120 139 Absorbed by Shields 1308 | . . . . . . . . . . . 98 292 . 38 . 9 . 62 . 11 . . . . . 85 . 161 531 21 . . . Reduced by Siege Mode 393 | . . . . . . . . . . . . . . . . . . . . . . . . 83 . 47 . . 7 256 . . . Redirected to Shielding 28 | . . 12 16 . . . . . . . . . . . . . . . . . . . . . . . . . . . . . . Regen/Repaired (Parts) 647 | . . . . . . . . . . . . . . . . . . . 141 . . . . . . . . . 506 . . . . Core Remaining (%) 42 | 100 . 5 . . . 33 . . . 29 . 9 . . . 5 . . . 57 . . . 57 . . . 84 . 43 . . . Volleys Fired 938 | . 40 47 . 2 . . . 70 10 31 25 27 4 32 22 44 19 81 35 35 . 16 7 58 1 52 . 51 98 29 6 82 14 Largest 3 | . 2 2 . 1 . . . 2 2 2 3 2 3 1 3 1 2 3 2 2 . 1 1 2 1 2 . 2 3 1 1 1 1 Hottest 308 | . 40 70 . 36 . . . 138 113 113 119 130 75 36 84 36 56 264 176 176 . 49 88 171 7 171 . 188 308 94 10 120 120 Shots Fired 1329 | . 80 82 . 2 . . . 138 16 37 50 33 8 33 51 47 25 132 58 54 . 16 9 62 1 70 . 70 121 32 6 82 14 Gun 632 | . 80 82 . . . . . 138 6 16 45 11 6 . 47 5 12 89 46 39 . . 6 3 . . . . . 1 . . . Cannon 335 | . . . . . . . . . 10 13 3 1 . . . . . . . . . . . 28 . 45 . 64 87 19 . 55 10 Launcher 87 | . . . . 2 . . . . . 8 . 16 . 2 4 6 . 6 . . . 16 3 7 . 11 . . . . . 6 . Special 275 | . . . . . . . . . . . 2 5 2 31 . 36 13 37 12 15 . . . 24 1 14 . 6 34 12 6 21 4 Kinetic 339 | . 80 42 . . . . . 62 . . 45 . 6 . 47 5 12 16 . . . . . 1 . 23 . . . . . . . Thermal 475 | . . 40 . . . . . 76 . . . 5 . . . . . 73 46 39 . . 5 27 . 22 . 25 52 . . 55 10 Explosive 60 | . . . . 2 . . . . . 8 . 11 . 2 4 6 . . . . . 16 3 2 . . . . . . . 6 . Electromagnetic 180 | . . . . . . . . . 16 29 3 12 . . . . . 6 . . . . 1 8 . 11 . 39 35 20 . . . Robot Hit Streak 25 | . 9 11 . . . . . 17 8 15 12 9 3 7 18 25 6 13 14 7 . 5 1 8 7 12 . 7 14 9 4 9 5 Robot Miss Streak 8 | . 4 3 . 4 . . . 8 4 1 2 1 2 1 2 3 2 2 2 2 . 1 3 4 . 5 . 4 2 3 1 4 3 Penetration Max . | . . . . . . . . . . . . . . . . . . . . . . . . . . . . . . . . . . Secondary Targets 11 | . 1 3 . . . . . 3 . . . . . . . . 1 1 . 2 . . . . . . . . . . . . . Max Gunslinging Chain 1 | . 1 1 . . . . . 1 . . . . . . . . 1 1 . 1 . . . . . . . . . . . . . Shots Hit Robots 1184 | . 48 56 61 2 . 3 27 80 17 21 29 64 5 27 45 45 19 81 45 39 . 10 2 64 1 46 . 40 181 56 7 52 11 Core Hits 483 | . 21 22 28 2 . 1 12 31 6 19 14 57 2 1 24 7 4 26 12 13 . 9 8 23 . 32 . 7 64 10 . 26 2 Critical Kills 11 | . 1 . . . . . . . . . . . . . . 1 . 1 3 . . . . . . 1 . 2 1 . . 1 . Critical Parts Destroyed 18 | . . . . . . . . . . . 1 . . 1 2 3 . 5 5 1 . . . . . . . . . . . . . Critical Strikes 75 | . 1 4 2 . . . 4 2 . 1 1 6 . 1 2 4 . 6 8 2 . . . 5 . 3 . 2 15 5 . 1 . Burn 6 | . . 4 . . . . . 2 . . . . . . . . . . . . . . . . . . . . . . . . . Meltdown 5 | . . . . . . . . . . . . . . . . . . . . . . . . . . 1 . 2 1 . . 1 . Destroy 15 | . 1 . . . . . . . . . 1 . . . . . . 4 8 1 . . . . . . . . . . . . . Blast 2 | . . . . . . . . . . . . . . . . . . . . . . . . . . 2 . . . . . . . Corrupt 3 | . . . . . . . . . . 1 . . . . . . . . . . . . . . . . . . . 2 . . . Smash 9 | . . . . . . . . . . . . . . 1 2 4 . 2 . . . . . . . . . . . . . . . Sever 29 | . . . 2 . . . 4 . . . . 6 . . . . . . . . . . . . . . . . 14 3 . . . Impale 6 | . . . . . . . . . . . . . . . . . . . . 1 . . . 5 . . . . . . . . . Melee Attacks 582 | . . . 83 2 . 3 48 . 9 1 1 71 . 16 9 30 . 6 2 7 . . 16 32 . . . . 191 47 2 2 4 Impact 65 | . . . . . . . . . . . . 2 . 16 9 30 . 6 2 . . . . . . . . . . . . . . Slashing 459 | . . . 83 2 . 3 48 . 6 1 1 69 . . . . . . . . . . . . . . . . 191 47 2 2 4 Piercing 55 | . . . . . . . . . . . . . . . . . . . . 7 . . 16 32 . . . . . . . . . Sneak Attacks 36 | . . . 9 2 . 1 2 . 4 . . 3 . . . . . . . 1 . . . 1 . . . . 9 . 2 2 . Combat Hostiles 9 | . . . . . . 1 . . 1 . . 3 . . . . . . . . . . . 1 . . . . 1 . . 2 . Follow-up Attacks 74 | . . . 8 . . . . . . . . 9 . 2 . 4 . 1 . . . . . . . . . . 37 12 . . 1 Damage Inflicted 44054 | . 554 581 2145 286 . 220 1448 1432 508 1428 551 3373 59 513 1441 1210 203 1699 1041 1043 . 3153 784 2239 . 1718 . 1719 8381 2520 180 3284 341 Guns 7667 | . 554 581 . . . . . 1432 36 194 488 234 59 . 715 . 203 1287 1041 732 . . 66 45 . . . . . . . . . Cannons 8304 | . . . . . . . . . 228 129 63 26 . . . . . . . . . . . 491 . 972 . 1719 2676 432 . 1362 206 Explosions 10571 | . . . . 82 . . . . . 1105 . 1470 . 168 423 249 . 180 . . . 3153 718 568 . 746 . . . . . 1709 . Melee 17505 | . . . 2145 198 . 220 1448 . 244 . . 1643 . 345 302 961 . 232 . 311 . . . 1135 . . . . 5705 2088 180 213 135 Ramming 7 | . . . . 6 . . . . . . . . . . 1 . . . . . . . . . . . . . . . . . . Kinetic 3527 | . 554 246 . . . . . 545 . . 488 . 59 . 715 . 203 243 . . . . . . . 474 . . . . . . . Thermal 9130 | . . 335 . . . . . 887 . . . 157 . . 174 . . 1044 1041 732 . . 66 491 . 498 . 881 1256 . . 1362 206 Explosive 9013 | . . . . 82 . . . . . 1105 . 1248 . 168 249 249 . . . . . 3153 718 332 . . . . . . . 1709 . Electromagnetic 4872 | . . . . . . . . . 264 323 63 325 . . . . . 180 . . . . . 281 . 746 . 838 1420 432 . . . Impact 1840 | . . . . . . . . . . . . . . 345 302 961 . 232 . . . . . . . . . . . . . . . Slashing 14219 | . . . 2145 198 . 220 1448 . 244 . . 1643 . . . . . . . . . . . . . . . . 5705 2088 180 213 135 Piercing 1446 | . . . . . . . . . . . . . . . . . . . . 311 . . . 1135 . . . . . . . . . Highest Corruption 25 | . . . 2 7 7 7 . . 1 13 2 2 1 1 2 4 1 1 . . . 8 8 8 . . . . 25 15 . . . Average Corruption 4 | . . . 2 3 7 7 . . 1 1 1 2 1 1 1 3 1 1 . . . 8 8 4 . . . . 11 15 . . . Corruption Purged 27 | . . . . . . . . . . . . . . . 1 2 . 1 . . . . . 4 . . . . 19 . . . . Corruption Blocked 17 | . . . . . . . . . . . . . . . . . . . . . . . . . . . . . 11 5 1 . . Effects 597 | . . . 7 8 12 2 . . . 11 4 85 1 41 11 53 1 12 . . . 3 24 64 . . . . 192 66 . . . Message Errors 150 | . . . 2 1 2 1 . . . 3 . 23 . 12 . 10 . 4 . . . . 4 12 . . . . 59 17 . . . Matter Fused 143 | . . . 1 3 3 . . . . 1 . 21 1 11 6 9 1 7 . . . 2 3 17 . . . . 48 9 . . . Heat Flow Errors 71 | . . . 1 1 2 1 . . . 2 1 7 . 4 . 8 . . . . . 1 3 11 . . . . 20 9 . . . Energy Discharges 84 | . . . . 1 1 . . . . 2 . 11 . 4 1 11 . 1 . . . . 6 11 . . . . 24 11 . . . Parts Rejected 4 | . . . . . . . . . . . . 1 . . . . . . . . . . . . . . . . 2 1 . . . Data Loss (minor) 74 | . . . 2 1 2 . . . . 1 . 15 . 6 1 6 . . . . . . 3 7 . . . . 24 6 . . . Data Loss (major) 37 | . . . . 1 2 . . . . 1 . 5 . 1 2 4 . . . . . . 3 4 . . . . 11 3 . . . Misfires 14 | . . . . . . . . . . 1 . 1 . 1 1 3 . . . . . . 2 2 . . . . . 3 . . . Alerts 14 | . . . 1 . . . . . . . 2 1 . 2 . 2 . . . . . . . . . . . . . 6 . . . Misdirections 4 | . . . . . . . . . . . . . . . . . . . . . . . . . . . . . 3 1 . . . Weapon Failures 2 | . . . . . . . . . . . 1 . . . . . . . . . . . . . . . . . 1 . . . . Overload Shots . | . . . . . . . . . . . . . . . . . . . . . . . . . . . . . . . . . . Overflow Damage 2554 | . . . 93 128 . 49 138 . . 117 . 61 . 130 170 294 . 105 . 102 . 94 . 94 . . . 67 520 69 65 258 . Projectiles 235 | . . . . . . . . . . 6 . . . . . . . . . . . . . 10 . . . 67 60 19 . 73 . Explosions 358 | . . . . . . . . . . 111 . 19 . 32 19 . . . . . . 94 . 3 . . . . . . . 80 . Melee 1961 | . . . 93 128 . 49 138 . . . . 42 . 98 151 294 . 105 . 102 . . . 81 . . . . 460 50 65 105 . Knockbacks 5 | . . . . . . . . . . . . . . . 3 2 . . . . . . . . . . . . . . . . . Impact 5 | . . . . . . . . . . . . . . . 3 2 . . . . . . . . . . . . . . . . . Kinetic . | . . . . . . . . . . . . . . . . . . . . . . . . . . . . . . . . . . Secondary . | . . . . . . . . . . . . . . . . . . . . . . . . . . . . . . . . . . Self-Inflicted Damage 432 | . . . . 54 . . . . . . . 16 . 56 181 . . . . . . . 87 6 . 32 . . . . . . . Shots 16 | . . . . 1 . . . . . . . 2 . 1 3 . . . . . . . 1 2 . 6 . . . . . . . Rammed 2 | . . . . 1 . . . . . . . . . . 1 . . . . . . . . . . . . . . . . . . Targets Rammed 2 | . . . . 1 . . . . . . . . . . 1 . . . . . . . . . . . . . . . . . . Kicked . | . . . . . . . . . . . . . . . . . . . . . . . . . . . . . . . . . . Crushed . | . . . . . . . . . . . . . . . . . . . . . . . . . . . . . . . . . . Highest Temperature 392 | . 12 161 150 255 170 245 . 225 . 253 192 373 . 274 35 273 . 360 306 392 . 131 267 265 . 196 . 235 340 304 . 351 . Average Temperature 97 | . 8 52 69 131 76 129 . 49 . 103 41 124 . 100 17 100 . 101 112 111 . 131 118 86 . 96 . 96 110 102 . 133 . Received Heat Transfer 4764 | . 120 249 204 . . . 90 513 54 162 348 647 30 36 219 493 6 356 . 136 . . . 213 . 138 . 86 84 436 18 117 9 Effects 6 | . . . . . . . . . . . . . . . . . . . . 2 . . . . . . . . . . . 4 . Shutdowns 3 | . . . . . . . . . . . . . . . . . . . . 1 . . . . . . . . . . . 2 . Energy Bleed 1 | . . . . . . . . . . . . . . . . . . . . . . . . . . . . . . . . 1 . Matter Decay 1 | . . . . . . . . . . . . . . . . . . . . . . . . . . . . . . . . 1 . Short Circuit 1 | . . . . . . . . . . . . . . . . . . . . 1 . . . . . . . . . . . . . Siege Activations 4 | . . . . . . . . . . . . . . . . . . . . . . . . 1 . 1 . . 1 1 . . . Total Turns 106 | . . . . . . . . . . . . . . . . . . . . . . . . 24 . 16 . . 7 59 . . . Longest Duration 59 | . . . . . . . . . . . . . . . . . . . . . . . . 24 . 16 . . 7 59 . . . Robots Corrupted 11 | . . . . . . . . . 1 . . . . . . . . . . . . . . . . 2 . 4 3 1 . . . Combat Hostiles 8 | . . . . . . . . . 1 . . . . . . . . . . . . . . . . 2 . 3 1 1 . . . Parts Fried 58 | . . . . . . . . . 4 3 . . . . 2 10 . 5 . . . . . 1 . 9 . 9 11 3 1 . . Impact Corruptions 23 | . . . . . . . . . . . . . . 4 4 12 . 3 . . . . . . . . . . . . . . . Robots Melted 5 | . . . . . . . . . . . . . . . . . . . . . . . . . . 1 . 2 1 . . 1 . Combat Hostiles 4 | . . . . . . . . . . . . . . . . . . . . . . . . . . . . 2 1 . . 1 . Parts Melted 27 | . . 7 . . . . . 1 . . . . . . . . . 1 . 1 . . . 2 . 2 . 4 6 . . 3 . Heat Transferred 11132 | . . 1295 . . . . . 1866 . . . 283 . . 100 . . 1406 1369 896 . . 74 347 . 518 . 703 962 . . 1128 185 Parts Sabotaged . | . . . . . . . . . . . . . . . . . . . . . . . . . . . . . . . . . . Parts Stolen . | . . . . . . . . . . . . . . . . . . . . . . . . . . . . . . . . . . Parts Stripped . | . . . . . . . . . . . . . . . . . . . . . . . . . . . . . . . . . . Power Chain Reactions . | . . . . . . . . . . . . . . . . . . . . . . . . . . . . . . . . . . Missiles Intercepted . | . . . . . . . . . . . . . . . . . . . . . . . . . . . . . . . . . . Alert | -11 -10 -10 -9 -9 -9 -8 -8 -8 -8 -8 -7 -7 -6 -6 -6 -6 -5 -5 -5 -5 -4 -4 -4 -4 -3 -3 -3 -3 -2 -2 -1 -1 -1 ------- Run | Scr Mat Min Mat Min Exi Min Mat Gar Mat Gar Fac Gar Fac Gar Fac Gar Fac Gar Fac Gar Fac Was Fac Gar Res Gar Res Gar Res Gar Acc Gar Acc Peak Influence 1027 | . 176 203 506 255 . 70 297 923 563 624 327 1027 539 395 440 494 368 727 407 404 212 226 395 738 414 676 403 703 395 452 290 918 678 Initial 550 | . . 63 74 187 . . 27 183 449 172 327 91 539 130 200 212 248 133 381 100 212 74 158 276 414 160 380 302 395 238 271 125 550 Average 395 | . 76 124 342 230 . 67 166 591 416 414 238 623 375 297 275 420 299 474 235 301 212 180 226 530 358 475 385 463 219 323 239 647 588 Maximum Alert Level 3 | . . 1 2 1 . . 1 3 2 2 1 3 2 1 2 2 1 3 2 2 1 1 1 3 2 2 2 3 1 2 1 3 2 Low Security (%) 15 | 100 100 91 12 26 . 100 55 . . 10 34 1 21 9 2 . 14 7 44 2 . 46 54 . . 16 . . 44 . 28 8 . Level 1 44 | . . 8 43 73 . . 44 26 54 32 65 27 39 90 95 15 85 20 54 73 100 53 45 26 69 22 76 45 55 80 71 17 . Level 2 31 | . . . 43 . . . . 35 45 57 . 33 39 . 2 83 . 62 . 23 . . . 61 30 60 23 45 . 19 . 29 100 Level 3 8 | . . . . . . . . 38 . . . 37 . . . . . 8 . . . . . 12 . . . 8 . . . 45 . Level 4 . | . . . . . . . . . . . . . . . . . . . . . . . . . . . . . . . . . . Level 5 . | . . . . . . . . . . . . . . . . . . . . . . . . . . . . . . . . . . High Security . | . . . . . . . . . . . . . . . . . . . . . . . . . . . . . . . . . . Max Security . | . . . . . . . . . . . . . . . . . . . . . . . . . . . . . . . . . . Squads Dispatched 68 | . 3 . . . . . 3 . 3 . 6 . 3 . 7 . 2 . 2 . . . 4 . . . 1 . 27 . 4 . 3 Investigation 12 | . 1 . . . . . 1 . 1 . . . 1 . . . 1 . 1 . . . 2 . . . 1 . 2 . 1 . . Extermination 25 | . . . . . . . . . . . 2 . 2 . 3 . 1 . 1 . . . 1 . . . . . 15 . . . . Reinforcement 25 | . 2 . . . . . 2 . 1 . 1 . . . 4 . . . . . . . 1 . . . . . 9 . 2 . 3 Assault . | . . . . . . . . . . . . . . . . . . . . . . . . . . . . . . . . . . Garrison 6 | . . . . . . . . . 1 . 3 . . . . . . . . . . . . . . . . . 1 . 1 . . Intercept . | . . . . . . . . . . . . . . . . . . . . . . . . . . . . . . . . . . Searches Triggered . | . . . . . . . . . . . . . . . . . . . . . . . . . . . . . . . . . . Construction Impeded 1 | . . . . . . . . . . . . . . . . . . . . . . . . . . . . . . . . . 1 Haulers Reinforced 2 | . . . . . . . . . . . . . . . . . . . . . . . . . . . . . 2 . . . . Active Scanning Responses . | . . . . . . . . . . . . . . . . . . . . . . . . . . . . . . . . . . Cargo Convoy Interrupts . | . . . . . . . . . . . . . . . . . . . . . . . . . . . . . . . . . . Stealth | -11 -10 -10 -9 -9 -9 -8 -8 -8 -8 -8 -7 -7 -6 -6 -6 -6 -5 -5 -5 -5 -4 -4 -4 -4 -3 -3 -3 -3 -2 -2 -1 -1 -1 --------- Run | Scr Mat Min Mat Min Exi Min Mat Gar Mat Gar Fac Gar Fac Gar Fac Gar Fac Gar Fac Gar Fac Was Fac Gar Res Gar Res Gar Res Gar Acc Gar Acc Distress Signals 16 | . 1 . 2 2 . . 1 1 1 . . . . . 1 . . . 2 . . . 2 1 . . . . 2 . . . . Communications Jammed . | . . . . . . . . . . . . . . . . . . . . . . . . . . . . . . . . . . Distress Signals . | . . . . . . . . . . . . . . . . . . . . . . . . . . . . . . . . . . Times Spotted 630 | . 17 7 35 6 . 2 25 21 8 12 21 45 3 20 17 37 13 42 16 24 . 6 16 28 1 25 . 18 83 21 9 37 15 Peak Tracking Total 11 | . 4 3 9 7 . 2 6 4 3 7 5 8 1 4 3 8 5 11 3 5 . 4 5 5 1 7 . 5 4 3 4 6 8 Tactical Retreats 68 | . 1 . 1 2 . . 6 4 . 3 . 13 . 2 1 3 . 7 . 5 . . . 4 . 5 . 3 3 2 . 2 1 Traps | -11 -10 -10 -9 -9 -9 -8 -8 -8 -8 -8 -7 -7 -6 -6 -6 -6 -5 -5 -5 -5 -4 -4 -4 -4 -3 -3 -3 -3 -2 -2 -1 -1 -1 ------- Run | Scr Mat Min Mat Min Exi Min Mat Gar Mat Gar Fac Gar Fac Gar Fac Gar Fac Gar Fac Gar Fac Was Fac Gar Res Gar Res Gar Res Gar Acc Gar Acc Traps Triggered 58 | . 1 . 1 . . . . . 1 4 1 5 . 12 1 6 . 2 . 1 1 . 2 4 . 5 . 1 1 1 1 7 . Indirectly . | . . . . . . . . . . . . . . . . . . . . . . . . . . . . . . . . . . Trap Hack Attempts . | . . . . . . . . . . . . . . . . . . . . . . . . . . . . . . . . . . Triggered . | . . . . . . . . . . . . . . . . . . . . . . . . . . . . . . . . . . Disarmed . | . . . . . . . . . . . . . . . . . . . . . . . . . . . . . . . . . . Reprogrammed . | . . . . . . . . . . . . . . . . . . . . . . . . . . . . . . . . . . Reused 18 | . . . . . . . . 1 . . 1 2 . . 6 . . . . 3 . . . . . . . 2 3 . . . . Traps Reconfigurated 99 | . . . . . . . . 7 . 1 7 17 3 7 9 . . 12 4 14 . . . . . . . 3 7 8 . . . Traps Extracted . | . . . . . . . . . . . . . . . . . . . . . . . . . . . . . . . . . . Installed . | . . . . . . . . . . . . . . . . . . . . . . . . . . . . . . . . . . Triggered 19 | . . . . . . . . 1 . . 1 2 . . 6 . . . . 3 . . . . . . . 2 4 . . . . Machines | -11 -10 -10 -9 -9 -9 -8 -8 -8 -8 -8 -7 -7 -6 -6 -6 -6 -5 -5 -5 -5 -4 -4 -4 -4 -3 -3 -3 -3 -2 -2 -1 -1 -1 ---------- Run | Scr Mat Min Mat Min Exi Min Mat Gar Mat Gar Fac Gar Fac Gar Fac Gar Fac Gar Fac Gar Fac Was Fac Gar Res Gar Res Gar Res Gar Acc Gar Acc Machines Disabled 62 | . . . . . . . . 1 1 2 . 4 . 4 12 4 . 7 1 1 . . 1 5 . 5 . 2 . 5 1 4 2 Max in Single Turn 5 | . . . . . . . . 1 1 1 . 1 . 1 5 1 . 1 1 1 . . 1 1 . 1 . 1 . 1 . 1 1 Garrison Relay 36 | . . . . . . . . 1 . 2 . 4 . 4 . 4 . 4 . 1 . . . 3 . 4 . 1 . 4 . 4 . Machines Sabotaged . | . . . . . . . . . . . . . . . . . . . . . . . . . . . . . . . . . . Garrisons Compromised . | . . . . . . . . . . . . . . . . . . . . . . . . . . . . . . . . . . Overloaded Fab Kills . | . . . . . . . . . . . . . . . . . . . . . . . . . . . . . . . . . . Hacking | -11 -10 -10 -9 -9 -9 -8 -8 -8 -8 -8 -7 -7 -6 -6 -6 -6 -5 -5 -5 -5 -4 -4 -4 -4 -3 -3 -3 -3 -2 -2 -1 -1 -1 --------- Run | Scr Mat Min Mat Min Exi Min Mat Gar Mat Gar Fac Gar Fac Gar Fac Gar Fac Gar Fac Gar Fac Was Fac Gar Res Gar Res Gar Res Gar Acc Gar Acc Machines Accessed 42 | . 1 . 2 1 1 . 5 . 3 . 1 . 2 . 5 . 2 . 3 . . . 3 . 2 . 1 . 9 . 1 . . Terminals 13 | . 1 . 2 . . . 3 . 2 . . . . . . . . . . . . . 1 . 1 . . . 3 . . . . Fabricators 9 | . . . . . . . . . . . . . . . 4 . . . 1 . . . 1 . . . . . 3 . . . . Repair Stations 4 | . . . . . . . . . . . . . 1 . . . . . 1 . . . . . . . . . 2 . . . . Recycling Units . | . . . . . . . . . . . . . . . . . . . . . . . . . . . . . . . . . . Scanalyzers 2 | . . . . . . . 1 . . . . . . . . . 1 . . . . . . . . . . . . . . . . Garrison Access 12 | . . . . . . . 1 . 1 . 1 . 1 . 1 . 1 . 1 . . . 1 . 1 . 1 . 1 . 1 . . Total Hacks 95 | . 2 . 4 1 1 . 17 . 5 . 1 . 3 . 9 . 5 . 7 . . . 10 . 5 . 2 . 21 . 2 . . Successful 53 | . 2 . 1 1 1 . 10 . 3 . 1 . 2 . 5 . 4 . 5 . . . 4 . 2 . 2 . 8 . 2 . . Failed 42 | . . . 3 . . . 7 . 2 . . . 1 . 4 . 1 . 2 . . . 6 . 3 . . . 13 . . . . Catastrophic 4 | . . . 1 . . . . . . . . . . . 1 . . . . . . . . . . . . . 2 . . . . Database Lockouts . | . . . . . . . . . . . . . . . . . . . . . . . . . . . . . . . . . . Manual 56 | . 2 . 4 . 1 . 9 . 2 . . . 1 . 4 . 1 . 3 . . . 8 . 4 . 1 . 15 . 1 . . Terminals 33 | . 2 . 4 . . . 8 . 3 . . . . . . . . . . . . . 4 . 3 . . . 9 . . . . Fabricators 17 | . . . . . . . . . . . . . . . 7 . . . 3 . . . 2 . . . . . 5 . . . . Repair Stations 8 | . . . . . . . . . . . . . 1 . . . . . 2 . . . . . . . . . 5 . . . . Recycling Units . | . . . . . . . . . . . . . . . . . . . . . . . . . . . . . . . . . . Scanalyzers 10 | . . . . . . . 7 . . . . . . . . . 3 . . . . . . . . . . . . . . . . Garrison Access 25 | . . . . . . . 2 . 2 . 1 . 2 . 2 . 2 . 2 . . . 4 . 2 . 2 . 2 . 2 . . Terminal Hacks 8 | . 1 . 1 1 1 . 1 . 1 . . . . . . . . . . . . . . . 1 . . . 1 . . . . Robot Analysis 1 | . . . . . . . . . 1 . . . . . . . . . . . . . . . . . . . . . . . . Open Door 1 | . . . . 1 . . . . . . . . . . . . . . . . . . . . . . . . . . . . . Terminal Index 2 | . 1 . . . . . 1 . . . . . . . . . . . . . . . . . . . . . . . . . . Alert Level 1 | . . . 1 . . . . . . . . . . . . . . . . . . . . . . . . . . . . . . Unreport Threat 2 | . . . . . . . . . . . . . . . . . . . . . . . . . 1 . . . 1 . . . . EX-Prototype ID Bank 1 | . . . . . 1 . . . . . . . . . . . . . . . . . . . . . . . . . . . . Fabricator Hacks 4 | . . . . . . . . . . . . . . . 3 . . . 1 . . . . . . . . . . . . . . Network Status 3 | . . . . . . . . . . . . . . . 2 . . . 1 . . . . . . . . . . . . . . Build 1 | . . . . . . . . . . . . . . . 1 . . . . . . . . . . . . . . . . . . Repair Station Hacks 6 | . . . . . . . . . . . . . . . . . . . 2 . . . . . . . . . 4 . . . . Scan Component 3 | . . . . . . . . . . . . . . . . . . . 1 . . . . . . . . . 2 . . . . Repair 3 | . . . . . . . . . . . . . . . . . . . 1 . . . . . . . . . 2 . . . . Recycling Unit Hacks . | . . . . . . . . . . . . . . . . . . . . . . . . . . . . . . . . . . Scanalyzer 7 | . . . . . . . 5 . . . . . . . . . 2 . . . . . . . . . . . . . . . . Insert Component 4 | . . . . . . . 3 . . . . . . . . . 1 . . . . . . . . . . . . . . . . Analyze 3 | . . . . . . . 2 . . . . . . . . . 1 . . . . . . . . . . . . . . . . Garrison Access Hacks 12 | . . . . . . . 1 . 1 . 1 . 1 . 1 . 1 . 1 . . . 1 . 1 . 1 . 1 . 1 . . Unlock Access 12 | . . . . . . . 1 . 1 . 1 . 1 . 1 . 1 . 1 . . . 1 . 1 . 1 . 1 . 1 . . Unauthorized Hacks 16 | . 1 . . . . . 3 . 1 . . . 1 . 1 . 1 . 1 . . . 3 . . . 1 . 2 . 1 . . Terminals 6 | . 1 . . . . . 2 . . . . . . . . . . . . . . . 2 . . . . . 1 . . . . Assimilate 1 | . . . . . . . 1 . . . . . . . . . . . . . . . . . . . . . . . . . . Botnet 2 | . . . . . . . 1 . . . . . . . . . . . . . . . 1 . . . . . . . . . . Operators 3 | . 1 . . . . . . . . . . . . . . . . . . . . . 1 . . . . . 1 . . . . Fabricators 1 | . . . . . . . . . . . . . . . 1 . . . . . . . . . . . . . . . . . . Fabnet 1 | . . . . . . . . . . . . . . . 1 . . . . . . . . . . . . . . . . . . Repair Stations . | . . . . . . . . . . . . . . . . . . . . . . . . . . . . . . . . . . Recycling Units . | . . . . . . . . . . . . . . . . . . . . . . . . . . . . . . . . . . Scanalyzers . | . . . . . . . . . . . . . . . . . . . . . . . . . . . . . . . . . . Garrison Access 9 | . . . . . . . 1 . 1 . . . 1 . . . 1 . 1 . . . 1 . . . 1 . 1 . 1 . . Eject 9 | . . . . . . . 1 . 1 . . . 1 . . . 1 . 1 . . . 1 . . . 1 . 1 . 1 . . Data Cores Recovered . | . . . . . . . . . . . . . . . . . . . . . . . . . . . . . . . . . . Used . | . . . . . . . . . . . . . . . . . . . . . . . . . . . . . . . . . . Hacking Detections 36 | . 1 . 2 . . . 4 . 3 . 1 . 2 . 5 . 1 . 2 . . . 3 . 2 . 1 . 8 . 1 . . Full Trace Events 2 | . . . . . . . . . . . . . . . . . . . . . . . 1 . . . . . 1 . . . . Feedback Events . | . . . . . . . . . . . . . . . . . . . . . . . . . . . . . . . . . . Feedback Blocked . | . . . . . . . . . . . . . . . . . . . . . . . . . . . . . . . . . . Robot Schematics Acquired . | . . . . . . . . . . . . . . . . . . . . . . . . . . . . . . . . . . Robots Built 1 | . . . . . . . . . . . . . . . 1 . . . . . . . . . . . . . . . . . . Authchips . | . . . . . . . . . . . . . . . . . . . . . . . . . . . . . . . . . . Time 81 | . . . . . . . . . . . . . . . 81 . . . . . . . . . . . . . . . . . . Total Robot Build Rating 1 | . . . . . . . . . . . . . . . 1 . . . . . . . . . . . . . . . . . . Part Schematics Acquired 3 | . . . . . . . 2 . . . . . . . . . 1 . . . . . . . . . . . . . . . . Parts Built . | . . . . . . . . . . . . . . . . . . . . . . . . . . . . . . . . . . Authchips . | . . . . . . . . . . . . . . . . . . . . . . . . . . . . . . . . . . Time . | . . . . . . . . . . . . . . . . . . . . . . . . . . . . . . . . . . Total Part Build Rating . | . . . . . . . . . . . . . . . . . . . . . . . . . . . . . . . . . . Parts Repaired 3 | . . . . . . . . . . . . . . . . . . . 1 . . . . . . . . . 2 . . . . Time 91 | . . . . . . . . . . . . . . . . . . . 32 . . . . . . . . . 59 . . . . Parts Recycled . | . . . . . . . . . . . . . . . . . . . . . . . . . . . . . . . . . . Recycled Matter . | . . . . . . . . . . . . . . . . . . . . . . . . . . . . . . . . . . Retrieved Matter . | . . . . . . . . . . . . . . . . . . . . . . . . . . . . . . . . . . Retrieved Components . | . . . . . . . . . . . . . . . . . . . . . . . . . . . . . . . . . . Parts Scanalyzed 3 | . . . . . . . 2 . . . . . . . . . 1 . . . . . . . . . . . . . . . . Part Schematics Acquired 3 | . . . . . . . 2 . . . . . . . . . 1 . . . . . . . . . . . . . . . . Parts Damaged . | . . . . . . . . . . . . . . . . . . . . . . . . . . . . . . . . . . Bothacking | -11 -10 -10 -9 -9 -9 -8 -8 -8 -8 -8 -7 -7 -6 -6 -6 -6 -5 -5 -5 -5 -4 -4 -4 -4 -3 -3 -3 -3 -2 -2 -1 -1 -1 ------------ Run | Scr Mat Min Mat Min Exi Min Mat Gar Mat Gar Fac Gar Fac Gar Fac Gar Fac Gar Fac Gar Fac Was Fac Gar Res Gar Res Gar Res Gar Acc Gar Acc Used RIF Installer 12 | . . . . . . . . 1 . 1 . 1 . 1 . 1 . 1 . 1 . . . 1 . 1 . 1 . 1 . 1 . Hotswap 1 | . . . . . . . . . . . . . . . . . . . . . . . . 1 . . . . . . . . . Threat Obfuscator 1 | . . . . . . . . . . 1 . . . . . . . . . . . . . . . . . . . . . . . Zone Cloak 1 | . . . . . . . . . . . . . . . . . . . . . . . . . . 1 . . . . . . . Robot Detection 1 | . . . . . . . . . . . . . . 1 . . . . . . . . . . . . . . . . . . . Watcher Feeds 1 | . . . . . . . . . . . . . . . . . . . . . . . . . . . . . . 1 . . . Patrol Navigation 1 | . . . . . . . . . . . . . . . . 1 . . . . . . . . . . . . . . . . . Structural Interface 1 | . . . . . . . . . . . . 1 . . . . . . . . . . . . . . . . . . . . . Autooverride 3 | . . . . . . . . . . . . . . . . . . 1 . 1 . . . . . . . 1 . . . . . Crosswire 1 | . . . . . . . . . . . . . . . . . . . . . . . . . . . . . . . . 1 . Robots Hacked 198 | . . . . . . . . . 1 . 1 3 2 16 . 19 4 15 10 11 . . 4 11 1 14 . 9 29 15 6 23 4 Non-combat 12 | . . . . . . . . . . . . . 1 . . . . . 1 . . . . 1 . . . . 8 . 1 . . Combat 186 | . . . . . . . . . 1 . 1 3 1 16 . 19 4 15 9 11 . . 4 10 1 14 . 9 21 15 5 23 4 Autooverrided 59 | . . . . . . . . . . . . . . . . . . 1 3 3 . . 4 3 . 7 . 4 11 8 3 11 1 Robot Hacks Applied 174 | . . . . . . . . . 2 . 1 3 2 17 . 23 7 16 7 8 . . . 17 1 10 . 5 22 9 4 17 3 parse_system 9 | . . . . . . . . . . . . . . . . . 2 1 . . . . . 2 . . . . 2 . 1 1 . drop_inventory 3 | . . . . . . . . . . . . . . . . . . . . . . . . . . . . . 3 . . . . purge_threat 2 | . . . . . . . . . . . . . . . . . . . . . . . . . . . . . 2 . . . . map_route 2 | . . . . . . . . . . . . . . . . . . . . . . . . . . . . . 1 . 1 . . mark_security 1 | . . . . . . . . . . . . . . . . . . . . . . . . 1 . . . . . . . . . relay_feed 1 | . . . . . . . . . . . . . . . . . . . . . . . . 1 . . . . . . . . . find_garrison 2 | . . . . . . . . . 1 . . . . . . . . . 1 . . . . . . . . . . . . . . link_fov 1 | . . . . . . . . . . . . . . . . . . . . . . . . 1 . . . . . . . . . focus_fire 1 | . . . . . . . . . . . . . . 1 . . . . . . . . . . . . . . . . . . . scatter_targeting 1 | . . . . . . . . . . . . . . . . . . . 1 . . . . . . . . . . . . . . disrupt_area 2 | . . . . . . . . . . . . . . . . 1 . . . . . . . . . . . 1 . . . . . spike_heat 1 | . . . . . . . . . . . . . . 1 . . . . . . . . . . . . . . . . . . . overload_power 1 | . . . . . . . . . . . . . . . . . . . . . . . . . . . . . 1 . . . . amplify_resonance 1 | . . . . . . . . . . . . . . . . . . . . . . . . 1 . . . . . . . . . disable_weapons 2 | . . . . . . . . . . . . . . . . 1 . 1 . . . . . . . . . . . . . . . reboot_system 5 | . . . . . . . . . . . . . . . . . . . 1 . . . . 3 . . . . . . . 1 . go_dormant 3 | . . . . . . . . . . . . . . . . 3 . . . . . . . . . . . . . . . . . overwrite_iff 37 | . . . . . . . . . . . . . . . . 9 1 3 2 3 . . . 2 . 5 . . . 5 1 4 2 formatsys_low 4 | . . . . . . . . . . . . . 1 . . . . . 1 . . . . . . . . . 2 . . . . formatsys_high 95 | . . . . . . . . . 1 . 1 3 1 15 . 9 4 11 1 5 . . . 6 1 5 . 4 11 4 1 11 1 Relay Couplers Released 171 | . . . . . . . 4 5 4 7 . 16 4 15 . 19 . 13 4 4 . . 4 9 . 16 3 5 4 15 3 17 . Ejected 30 | . . . . . . . 4 . 4 . . . 4 . . . . . 4 . . . 4 . . . 3 . 4 . 3 . . Machine Destruction 141 | . . . . . . . . 5 . 7 . 16 . 15 . 19 . 13 . 4 . . . 9 . 16 . 5 . 15 . 17 . Attached 70 | . . . . . . . . . 1 . 2 3 2 13 . 12 2 8 4 2 . . 1 4 . 4 . 1 2 2 4 3 . Crosswired 14 | . . . . . . . . . . . . . . . . . . . . . . . . . . . . . . . . 14 . Fabnet Peak Effective % 3 | . . . . . . . . . . . . . . . . . 3 3 3 3 1 1 1 1 . . . . . . . . . Autooverrided 3 | . . . . . . . . . . . . . . . . . 1 . 2 . . . . . . . . . . . . . . Robots Rewired 3 | . . . . . . . . . . . . . . . . . . . . 3 . . . . . . . . . . . . . Allies Hacked 6 | . . . . . . . . . . . . . . . . . . . . . . . 2 . . . . . 2 . . 1 1 Hacks Repelled . | . . . . . . . . . . . . . . . . . . . . . . . . . . . . . . . . . . Allies | -11 -10 -10 -9 -9 -9 -8 -8 -8 -8 -8 -7 -7 -6 -6 -6 -6 -5 -5 -5 -5 -4 -4 -4 -4 -3 -3 -3 -3 -2 -2 -1 -1 -1 -------- Run | Scr Mat Min Mat Min Exi Min Mat Gar Mat Gar Fac Gar Fac Gar Fac Gar Fac Gar Fac Gar Fac Was Fac Gar Res Gar Res Gar Res Gar Acc Gar Acc Total Allies 186 | . . . . . . . 1 . 1 . 1 3 2 15 1 16 4 14 8 14 . 1 4 9 1 14 . 8 24 15 4 22 4 Largest Group 10 | . . . . . . . 1 . 1 . 1 3 3 10 8 6 7 5 4 9 6 5 8 6 5 6 6 8 4 4 5 9 10 Highest-Rated Group 775 | . . . . . . . 10 . 15 . 21 36 47 295 230 155 204 192 101 260 184 172 313 247 235 332 332 463 425 238 324 701 775 Highest-Rated Ally 219 | . . . . . . . 10 . 15 . 21 12 32 47 41 41 49 85 54 41 41 41 47 58 64 64 64 64 178 64 89 219 219 Total Orders 179 | . . . . . . . 4 . . . . 5 . 13 4 14 4 12 . 13 . . . 13 . 15 . 14 35 5 5 22 1 STAY 109 | . . . . . . . 2 . . . . 3 . 8 2 10 3 8 . 9 . . . 7 . 9 . 10 19 3 2 13 1 FOLLOW 69 | . . . . . . . 2 . . . . 2 . 5 2 4 1 4 . 4 . . . 6 . 6 . 4 15 2 3 9 . AID 1 | . . . . . . . . . . . . . . . . . . . . . . . . . . . . . 1 . . . . Ally Attacks 853 | . . . . . . . . . 2 . 11 30 5 47 34 34 35 75 30 57 . 25 41 34 5 48 . 52 114 35 24 76 39 Total Damage 28388 | . . . . . . . . . 62 . 285 344 97 995 2338 705 608 1397 302 1013 . 959 1330 1437 200 1396 . 1997 4905 1165 836 3222 2795 Kills 152 | . . . . . . . . . . . 6 3 . 9 19 5 8 13 2 2 . 3 10 3 . 7 . 6 19 3 3 13 18 Allies Corrupted 8 | . . . . . . . . . . . . . . . . . . . . . . . . . . . . 2 5 1 . . . Allies Melted 2 | . . . . . . . . . . . . . . . . . . . . 1 . . . . . 1 . . . . . . . Intel | -11 -10 -10 -9 -9 -9 -8 -8 -8 -8 -8 -7 -7 -6 -6 -6 -6 -5 -5 -5 -5 -4 -4 -4 -4 -3 -3 -3 -3 -2 -2 -1 -1 -1 ------- Run | Scr Mat Min Mat Min Exi Min Mat Gar Mat Gar Fac Gar Fac Gar Fac Gar Fac Gar Fac Gar Fac Was Fac Gar Res Gar Res Gar Res Gar Acc Gar Acc Robot Analysis Total 1 | . . . . . . . . . 1 . . . . . . . . . . . . . . . . . . . . . . . . Derelict Logs Recovered . | . . . . . . . . . . . . . . . . . . . . . . . . . . . . . . . . . . Drone Launches . | . . . . . . . . . . . . . . . . . . . . . . . . . . . . . . . . . . Drone Recoveries . | . . . . . . . . . . . . . . . . . . . . . . . . . . . . . . . . . . Exploration | -11 -10 -10 -9 -9 -9 -8 -8 -8 -8 -8 -7 -7 -6 -6 -6 -6 -5 -5 -5 -5 -4 -4 -4 -4 -3 -3 -3 -3 -2 -2 -1 -1 -1 ------------- Run | Scr Mat Min Mat Min Exi Min Mat Gar Mat Gar Fac Gar Fac Gar Fac Gar Fac Gar Fac Gar Fac Was Fac Gar Res Gar Res Gar Res Gar Acc Gar Acc Turns Passed 57870 | 65 620 217 1053 404 482 70 1086 1775 884 1383 1007 5608 1024 5597 1764 4193 466 5592 1189 2509 33 207 739 2736 244 2278 110 1907 7014 1690 556 3009 359 Spaces Moved 21231 | 38 309 72 520 225 301 39 523 698 446 365 257 1547 302 1463 559 1605 173 1380 485 1025 25 126 470 1328 107 860 43 626 2633 847 301 1392 141 Core 214 | 5 . 7 . . . . . . . . . 116 . . . 86 . . . . . . . . . . . . . . . . . Treads 15672 | 33 309 21 419 225 301 39 523 698 446 365 257 1085 302 971 528 887 . 66 273 . . . . 1075 107 860 43 626 2532 847 301 1392 141 Legs 2988 | . . . . . . . . . . . . 346 . 492 31 632 173 1314 . . . . . . . . . . . . . . . Wheels 2357 | . . 44 101 . . . . . . . . . . . . . . . 212 1025 25 126 470 253 . . . . 101 . . . . Hover . | . . . . . . . . . . . . . . . . . . . . . . . . . . . . . . . . . . Flight . | . . . . . . . . . . . . . . . . . . . . . . . . . . . . . . . . . . Fastest Speed 50 | 50 160 80 90 160 160 160 160 160 160 312 312 50 320 260 225 120 190 190 160 145 130 130 115 115 160 235 235 235 145 160 160 160 160 Average Speed 217 | 145 160 114 151 160 160 160 160 160 168 318 330 270 320 346 241 231 190 293 205 158 130 130 129 154 206 235 235 237 205 163 160 178 224 Slowest Speed 1600 | 160 160 160 240 160 160 160 160 160 320 465 545 1600 320 680 465 1450 190 470 320 160 130 130 130 240 240 235 235 315 560 240 160 245 250 Overloaded Moves . | . . . . . . . . . . . . . . . . . . . . . . . . . . . . . . . . . . Propulsion Burnouts . | . . . . . . . . . . . . . . . . . . . . . . . . . . . . . . . . . . Robots Hopped . | . . . . . . . . . . . . . . . . . . . . . . . . . . . . . . . . . . Cave-ins Triggered . | . . . . . . . . . . . . . . . . . . . . . . . . . . . . . . . . . . Exploration Rate (%) 45 | 3 54 23 58 31 69 11 41 66 36 54 7 90 11 99 17 98 7 99 14 58 1 83 11 92 4 95 1 49 58 98 10 98 7 Regions Visited 33 Branch Regions 4 Pre-discovered Areas . | . . . . . . . . . . . . . . . . . . . . . . . . . . . . . . . . . . Known Exits Taken 12 | . . . . . . . 1 . 1 . 1 . 1 . 1 . 1 . 1 . . . 1 . 1 . 1 . 1 . 1 . . Unknown Exits Taken 7 | 1 1 1 1 1 1 1 . . . . . . . . . . . . . . . . . . . . . . . . . . . Scrap Searched 1 | . . . . 1 . . . . . . . . . . . . . . . . . . . . . . . . . . . . . Spaces Dug 139 | . . . . . . . 10 . 2 . 1 14 . 7 . . . . 2 . . 23 7 27 . . . . 40 . . 6 . Terrain Destroyed 679 | . . . . 29 . . 10 . 2 10 1 79 . 22 65 8 . . 2 . . 178 73 55 . 11 . 3 52 . . 79 . Melee 50 | . . . . . . . 10 . 2 . 1 . . . . . . . 2 . . . 7 . . . . . 28 . . . . Projectile 64 | . . . . . . . . . . . . . . . . . . . . . . . . 9 . 11 . 3 24 . . 17 . AOE 565 | . . . . 29 . . . . . 10 . 79 . 22 65 8 . . . . . 178 66 46 . . . . . . . 62 . Terrain Rammed . | . . . . . . . . . . . . . . . . . . . . . . . . . . . . . . . . . . Walls Destroyed . | . . . . . . . . . . . . . . . . . . . . . . . . . . . . . . . . . . Machines Disabled . | . . . . . . . . . . . . . . . . . . . . . . . . . . . . . . . . . . Actions | -11 -10 -10 -9 -9 -9 -8 -8 -8 -8 -8 -7 -7 -6 -6 -6 -6 -5 -5 -5 -5 -4 -4 -4 -4 -3 -3 -3 -3 -2 -2 -1 -1 -1 --------- Run | Scr Mat Min Mat Min Exi Min Mat Gar Mat Gar Fac Gar Fac Gar Fac Gar Fac Gar Fac Gar Fac Was Fac Gar Res Gar Res Gar Res Gar Acc Gar Acc Total 31169 | 45 362 130 685 264 302 41 681 1219 553 551 368 2845 354 1946 922 2011 291 2821 624 1855 26 154 563 1914 130 1087 53 980 3916 1078 373 1857 168 Wait 7324 | . 10 4 51 24 . . 93 432 63 127 50 1116 18 369 282 252 86 1246 71 743 . 7 28 425 14 142 3 281 879 135 47 325 1 Move 21190 | 37 308 71 519 224 300 38 522 696 445 363 257 1545 301 1461 559 1603 172 1378 484 1023 25 125 469 1326 106 858 42 624 2632 845 300 1391 141 Hop . | . . . . . . . . . . . . . . . . . . . . . . . . . . . . . . . . . . Pick Up 233 | 2 1 3 20 2 1 . 5 3 7 7 5 27 4 11 5 28 1 11 3 2 . 2 7 8 . 11 2 3 22 10 5 15 . Fast Attach 272 | 5 2 3 11 1 . . 4 6 7 4 8 31 6 7 14 12 2 20 7 4 . 1 9 21 5 4 2 6 53 6 3 7 1 Attach 141 | 1 . 1 10 2 . . 2 5 1 4 3 8 3 5 6 10 4 16 6 5 1 1 2 7 . 3 1 5 8 6 4 6 5 Detach 62 | . . 1 . 1 . . . 4 1 2 1 5 3 2 5 3 1 10 4 2 . 1 2 . . 1 . 2 7 1 . 3 . Swap 139 | . . . 2 1 . . . . 2 3 11 14 8 11 4 10 3 9 4 4 . . 6 6 1 2 . 3 24 6 1 3 1 Drop 222 | . 1 . 9 4 1 . 7 3 8 1 7 16 5 5 13 7 2 11 8 3 . 1 12 17 3 4 3 2 50 5 4 8 2 Fire 938 | . 40 47 . 2 . . . 70 10 31 25 27 4 32 22 44 19 81 35 35 . 16 7 58 1 52 . 51 98 29 6 82 14 Melee 464 | . . . 63 2 . 3 48 . 9 1 1 52 . 13 9 25 . 5 2 6 . . 13 32 . . . . 140 33 2 2 3 Ram . | . . . . . . . . . . . . . . . . . . . . . . . . . . . . . . . . . . Kick . | . . . . . . . . . . . . . . . . . . . . . . . . . . . . . . . . . . Crush 2 | . . . . 1 . . . . . . . . . . 1 . . . . . . . . . . . . . . . . . . Escape Stasis 107 | . . . . . . . . . . 8 . 4 . 30 2 17 . . . 3 . . 8 8 . 10 . 1 . 2 . 14 . Rewire 75 | . . . . . . . . . . . . . 2 . . . 1 34 . 25 . . . 6 . . . 2 3 . 1 1 . Trap . | . . . . . . . . . . . . . . . . . . . . . . . . . . . . . . . . . . Miscellaneous . | . . . . . . . . . . . . . . . . . . . . . . . . . . . . . . . . . . Route ------- -11/Scrapyard -10/Materials (discovered 3 exits: *Mat / [*Min x2]) -10/Mines -9/Materials (discovered 2 exits: *Mat / *Min) -9/Mines (discovered 4 exits: *Mat x2 / *Exi / [*Zio]) -9/Exiles (discovered 2 exits: [*Min x2]) -8/Mines -8/Materials (discovered 2 exits: *Fac / Gar) -8/Garrison (discovered 3 exits: *Mat x3) -8/Materials -8/Garrison (discovered 2 exits: *Fac x2) -7/Factory -7/Garrison (discovered 3 exits: *Fac x3) -6/Factory (discovered 3 exits: *Fac / [*Low] / Gar) -6/Garrison (discovered 3 exits: *Fac x3) -6/Factory (discovered 2 exits: *Fac / Gar) -6/Garrison (discovered 3 exits: *Fac x3) -5/Factory -5/Garrison (discovered 3 exits: *Fac x3) -5/Factory -5/Garrison -4/Factory -4/Waste -4/Factory -4/Garrison (discovered 3 exits: *Res x3) -3/Research -3/Garrison (discovered 3 exits: *Res x3) -3/Research -3/Garrison -2/Research (discovered 4 exits: *Acc x2 / [*Tes] / Gar) -2/Garrison (discovered 3 exits: *Acc x3) -1/Access -1/Garrison (discovered 3 exits: [*Acc x3]) -1/Access History --------- Turn | Location | Event 2 | -11/Scrapyard | Met Revision 17 5 | -11/Scrapyard | Discovered new exit (range 13) 66 | -11/Scrapyard | Entered Materials 145 | -10/Materials | Discovered new exit (range 15) 240 | -10/Materials | Discovered new exit (range 16) 314 | -10/Materials | Build established: Mutant 621 | -10/Materials | Discovered new exit (range 8) 686 | -10/Materials | Entered Mines 764 | -10/Mines | Core integrity fell below 50% 813 | -10/Mines | Lost 3 parts (1p2n) 848 | -10/Mines | Discovered new exit (range 10) 884 | -10/Mines | Core integrity fell below 20% 903 | -10/Mines | Entered Materials 903 | -9/Materials | Evolved 2 slots: Utility x2 1105 | -9/Materials | Lost 5 parts (1p2n2u) 1281 | -9/Materials | Core integrity fell below 50% 1475 | -9/Materials | Build established: Scavenger-Mutant 1624 | -9/Materials | Discovered new exit (range 14) 1870 | -9/Materials | Discovered new exit (range 8) 1956 | -9/Materials | Entered Mines 1957 | -9/Mines | A Derelict revealed a hidden shortcut to a safe place 1987 | -9/Mines | Discovered new exit (range 6) 1996 | -9/Mines | Assembled infested the area 2198 | -9/Mines | Met a Derelict who couldn't figure out how to use a Trap Extractor 2295 | -9/Mines | Discovered new exit (range 5) 2302 | -9/Mines | Received a Rocket Launcher from a helpful Derelict 2352 | -9/Mines | Deemed a non-threat by the Exiles lab entrance 2354 | -9/Mines | Discovered new exit (range 5) 2360 | -9/Mines | Entered Exiles 2384 | -9/Exiles | Discovered new exit (range 15) 2400 | -9/Exiles | Met 8R-AWN 2428 | -9/Exiles | Met EX-HEX 2493 | -9/Exiles | Met EX-DEC 2498 | -9/Exiles | Build established: Scavenger-Gladiator 2612 | -9/Exiles | Met EX-BIN 2634 | -9/Exiles | Aligned with FarCom system 2636 | -9/Exiles | Given EX-Vault access code 2672 | -9/Exiles | Opened EX-Vault 2684 | -9/Exiles | Found Trap Reconfigurator 2720 | -9/Exiles | Warned to stay clear of 0b10 Research branches 2824 | -9/Exiles | Discovered new exit (range 14) 2842 | -9/Exiles | Left Exiles lab with Trap Reconfigurator 2842 | -9/Exiles | Entered Mines 2899 | -8/Mines | Discovered new exit (range 8) 2912 | -8/Mines | Entered Materials 2912 | -8/Materials | Evolved 2 slots: Utility x2 3438 | -8/Materials | Discovered new exit (range 16) 3990 | -8/Materials | Identified exit to Garrison 3998 | -8/Materials | Entered Garrison 4243 | -8/Garrison | Triggered checkpoint 4370 | -8/Garrison | Discovered new exit (range 14) 4445 | -8/Garrison | Triggered checkpoint 4583 | -8/Garrison | Build established: Scavenger-Mutant 4587 | -8/Garrison | Discovered new exit (range 12) 5156 | -8/Garrison | Triggered checkpoint 5323 | -8/Garrison | Discovered new exit (range 14) 5352 | -8/Garrison | Installed Relay Interface Framework 5590 | -8/Garrison | Triggered checkpoint 5624 | -8/Garrison | Garrison Relay disabled 5773 | -8/Garrison | Entered Materials 6491 | -8/Materials | Garrison activated, responded to threat 6614 | -8/Materials | Identified exit to Garrison 6657 | -8/Materials | Entered Garrison 6764 | -8/Garrison | Triggered checkpoint 6796 | -8/Garrison | Garrison Relay disabled 6938 | -8/Garrison | Build established: Bothacker-Mutant 7214 | -8/Garrison | Triggered checkpoint 7251 | -8/Garrison | Core integrity fell below 50% 7286 | -8/Garrison | Destroyed 8 combat bots 7336 | -8/Garrison | Discovered new exit (range 10) 7539 | -8/Garrison | Discovered new exit (range 8) 7578 | -8/Garrison | Expanded RIF knowledge: Threat Obfuscation 7798 | -8/Garrison | Lost 3 parts (1p1n1w) 7859 | -8/Garrison | Garrison Relay disabled 8027 | -8/Garrison | System corruption reached 10% 8040 | -8/Garrison | Entered Factory 8040 | -7/Factory | Evolved 2 slots: Propulsion x1, Weapon x1 8525 | -7/Factory | Build established: Bothacker-Tank 8823 | -7/Factory | Garrison activated, responded to threat 9047 | -7/Factory | Identified exit to Garrison 9047 | -7/Factory | Entered Garrison 9051 | -7/Garrison | Released all parts (7) 9065 | -7/Garrison | Core integrity fell below 50% 9077 | -7/Garrison | Lost 7 parts (1p3n1u2w) 9096 | -7/Garrison | Garrison Relay disabled 9180 | -7/Garrison | Destroyed 7 combat bots 9592 | -7/Garrison | Build established: Bothacker-Mutant 9724 | -7/Garrison | Triggered checkpoint 10128 | -7/Garrison | Triggered checkpoint 11000 | -7/Garrison | Discovered new exit (range 15) 11068 | -7/Garrison | Lost 5 parts (1p4n) 11365 | -7/Garrison | Core integrity fell below 20% 11486 | -7/Garrison | Triggered checkpoint 11604 | -7/Garrison | Garrison Relay disabled 12572 | -7/Garrison | Triggered checkpoint 12699 | -7/Garrison | Discovered new exit (range 11) 12735 | -7/Garrison | Expanded RIF knowledge: Structural Interface 12836 | -7/Garrison | Triggered checkpoint 13043 | -7/Garrison | Garrison Relay disabled 13446 | -7/Garrison | Discovered new exit (range 15) 13604 | -7/Garrison | Garrison Relay disabled 14287 | -7/Garrison | Triggered checkpoint 14655 | -7/Garrison | Entered Factory 14655 | -6/Factory | Accompanied by 2 allies 14655 | -6/Factory | Evolved 2 slots: Utility x2 15317 | -6/Factory | Discovered new exit (range 11) 15575 | -6/Factory | Discovered new exit (range 14) 15670 | -6/Factory | Identified exit to Garrison 15679 | -6/Factory | Entered Garrison 15679 | -6/Garrison | Accompanied by 1 ally 15833 | -6/Garrison | Garrison Relay disabled 15843 | -6/Garrison | Triggered checkpoint 16061 | -6/Garrison | Triggered checkpoint 16540 | -6/Garrison | Garrison Relay disabled 16612 | -6/Garrison | Discovered new exit (range 8) 16944 | -6/Garrison | Triggered checkpoint 17487 | -6/Garrison | Discovered new exit (range 12) 17551 | -6/Garrison | Expanded RIF knowledge: Robot Detection 17677 | -6/Garrison | Triggered checkpoint 17848 | -6/Garrison | Build established: Botlord-Mutant 18384 | -6/Garrison | Garrison Relay disabled 19390 | -6/Garrison | Triggered checkpoint 19802 | -6/Garrison | Discovered new exit (range 8) 20084 | -6/Garrison | Triggered checkpoint 20125 | -6/Garrison | Garrison Relay disabled 20261 | -6/Garrison | Triggered checkpoint 21276 | -6/Garrison | Entered Factory 21276 | -6/Factory | Accompanied by 7 allies 21425 | -6/Factory | Fabricated K-01 Serf (x1) 22080 | -6/Factory | Lost 5 parts (1p2u2w) 22175 | -6/Factory | Discovered new exit (range 8) 22545 | -6/Factory | Build established: Skirmisher 23040 | -6/Factory | Identified exit to Garrison 23040 | -6/Factory | Entered Garrison 23052 | -6/Garrison | Expanded RIF knowledge: Patrol Navigation 23188 | -6/Garrison | Triggered checkpoint 23288 | -6/Garrison | Destroyed 7 combat bots 23402 | -6/Garrison | Garrison Relay disabled 23465 | -6/Garrison | Build established: Botlord-Mutant 23600 | -6/Garrison | Triggered checkpoint 23904 | -6/Garrison | Triggered checkpoint 24127 | -6/Garrison | Garrison Relay disabled 24220 | -6/Garrison | Discovered new exit (range 15) 25225 | -6/Garrison | Discovered new exit (range 5) 25283 | -6/Garrison | Triggered checkpoint 25317 | -6/Garrison | Core integrity fell below 50% 25347 | -6/Garrison | Lost 6 parts (1p3n1u1w) 25754 | -6/Garrison | Core integrity fell below 20% 25825 | -6/Garrison | Lost 3 parts (2u1w) 26368 | -6/Garrison | Triggered checkpoint 26454 | -6/Garrison | Garrison Relay disabled 26515 | -6/Garrison | Discovered new exit (range 12) 26778 | -6/Garrison | Garrison Relay disabled 26930 | -6/Garrison | Triggered checkpoint 27233 | -6/Garrison | Entered Factory 27233 | -5/Factory | Accompanied by 6 allies 27233 | -5/Factory | Evolved 2 slots: Utility x2 27596 | -5/Factory | P-70 Sage assimilated allied Gladiator 5a 27600 | -5/Factory | P-70 Sage assimilated allied Fighter 5a 27696 | -5/Factory | Identified exit to Garrison 27699 | -5/Factory | Entered Garrison 27699 | -5/Garrison | Accompanied by 2 allies 27709 | -5/Garrison | Expanded RIF knowledge: Autooverride 28089 | -5/Garrison | Triggered checkpoint 28216 | -5/Garrison | Found Unknown Device 28216 | -5/Garrison | Identified Quantum Capacitor 28302 | -5/Garrison | Garrison Relay disabled 28525 | -5/Garrison | Spotted B-75 Beast 28943 | -5/Garrison | Triggered checkpoint 30220 | -5/Garrison | Assimilated Beast 6a with formatsys_high 30559 | -5/Garrison | Triggered checkpoint 30767 | -5/Garrison | Discovered new exit (range 12) 30865 | -5/Garrison | Build established: Botlord-Skirmisher 30894 | -5/Garrison | Triggered checkpoint 30992 | -5/Garrison | Garrison Relay disabled 31381 | -5/Garrison | Discovered new exit (range 14) 31503 | -5/Garrison | Triggered checkpoint 31565 | -5/Garrison | Garrison Relay disabled 31960 | -5/Garrison | Triggered checkpoint 31990 | -5/Garrison | Lost 3 parts (1n2u) 32255 | -5/Garrison | Discovered new exit (range 7) 32275 | -5/Garrison | Build established: Botlord-Mutant 32544 | -5/Garrison | Triggered checkpoint 32799 | -5/Garrison | Garrison Relay disabled 33291 | -5/Garrison | Entered Factory 33291 | -5/Factory | Accompanied by 1 ally 33886 | -5/Factory | Local machine network offline 33906 | -5/Factory | Repaired Imp. Treads 34461 | -5/Factory | Identified exit to Garrison 34480 | -5/Factory | Entered Garrison 34480 | -5/Garrison | Accompanied by 1 ally 34542 | -5/Garrison | Garrison Relay disabled 34556 | -5/Garrison | Triggered checkpoint 35348 | -5/Garrison | Triggered checkpoint 35934 | -5/Garrison | Build established: Commander-Mutant 36208 | -5/Garrison | Triggered checkpoint 36297 | -5/Garrison | Spotted B-75 Beast 36314 | -5/Garrison | Destroyed B-75 Beast 36368 | -5/Garrison | Triggered checkpoint 36389 | -5/Garrison | Discovered new exit (range 15) 36425 | -5/Garrison | Expanded RIF knowledge: Autooverride 36989 | -5/Garrison | Entered Factory 36989 | -4/Factory | Accompanied by 6 allies 36989 | -4/Factory | Evolved 2 slots: Power x1, Propulsion x1 37022 | -4/Factory | Sucked down chute 37022 | -4/Factory | Entered Waste 37022 | -4/Waste | Met up with 1 ally sucked down the chute earlier 37037 | -4/Waste | EMP discharged 37054 | -4/Waste | Spotted C-40 Crusher 37066 | -4/Waste | Destroyed C-40 Crusher 37071 | -4/Waste | Spotted C-40 Crusher 37075 | -4/Waste | Spotted C-40 Crusher 37077 | -4/Waste | Destroyed C-40 Crusher 37079 | -4/Waste | Spotted C-40 Crusher 37082 | -4/Waste | Destroyed C-40 Crusher 37088 | -4/Waste | Allies destroyed C-40 Crusher 37118 | -4/Waste | Spotted C-40 Crusher 37119 | -4/Waste | Spotted C-40 Crusher 37120 | -4/Waste | 5 allies followed down the chute 37125 | -4/Waste | Allies destroyed C-40 Crusher 37137 | -4/Waste | EMP discharged 37137 | -4/Waste | Allies destroyed C-40 Crusher 37205 | -4/Waste | Discovered new exit (range 12) 37211 | -4/Waste | Found Prototype Device 37211 | -4/Waste | Identified Adv. Particle Accelerator 37229 | -4/Waste | Entered Factory 37229 | -4/Factory | Accompanied by 5 allies 37774 | -4/Factory | P-70 Sage assimilated allied Soldier 7b 37950 | -4/Factory | Identified exit to Garrison 37968 | -4/Factory | Entered Garrison 37968 | -4/Garrison | Accompanied by 2 allies 38052 | -4/Garrison | Build established: Botlord-Mutant 38130 | -4/Garrison | Triggered checkpoint 38144 | -4/Garrison | Garrison Relay disabled 38409 | -4/Garrison | Spotted B-86 Titan 38590 | -4/Garrison | Destroyed B-86 Titan 38604 | -4/Garrison | Lost 9 parts (2p2n3u2w) 38744 | -4/Garrison | Triggered checkpoint 38876 | -4/Garrison | P-70 Sage assimilated allied Enforcer 7a 38986 | -4/Garrison | Discovered new exit (range 20) 39194 | -4/Garrison | Triggered checkpoint 39215 | -4/Garrison | Garrison Relay disabled 39448 | -4/Garrison | Spotted B-86 Titan 39963 | -4/Garrison | Found Gamma Bomb Array 39994 | -4/Garrison | Discovered new exit (range 11) 40054 | -4/Garrison | Garrison Relay disabled 40256 | -4/Garrison | Triggered checkpoint 40372 | -4/Garrison | Triggered checkpoint 40389 | -4/Garrison | Discovered new exit (range 15) 40420 | -4/Garrison | Expanded RIF knowledge: Hotswap 40643 | -4/Garrison | Found Gamma Bomb Array 40704 | -4/Garrison | Entered Research 40704 | -3/Research | Accompanied by 5 allies 40704 | -3/Research | Evolved 2 slots: Utility x2 40822 | -3/Research | Identified exit to Garrison 40948 | -3/Research | Entered Garrison 40948 | -3/Garrison | Accompanied by 4 allies 40960 | -3/Garrison | Expanded RIF knowledge: Zone Cloak 41030 | -3/Garrison | Triggered checkpoint 41095 | -3/Garrison | Garrison Relay disabled 41319 | -3/Garrison | Spotted B-86 Titan 41351 | -3/Garrison | Destroyed B-86 Titan 41474 | -3/Garrison | Triggered checkpoint 41828 | -3/Garrison | Triggered checkpoint 41834 | -3/Garrison | Triggered checkpoint 41968 | -3/Garrison | Triggered checkpoint 41985 | -3/Garrison | Garrison Relay disabled 42331 | -3/Garrison | Discovered new exit (range 10) 42538 | -3/Garrison | Garrison Relay disabled 42635 | -3/Garrison | Discovered new exit (range 13) 42889 | -3/Garrison | Garrison Relay disabled 42933 | -3/Garrison | Discovered new exit (range 8) 43226 | -3/Garrison | Entered Research 43226 | -3/Research | Accompanied by 6 allies 43310 | -3/Research | Identified exit to Garrison 43336 | -3/Research | Entered Garrison 43336 | -3/Garrison | Accompanied by 6 allies 43348 | -3/Garrison | Expanded RIF knowledge: Autooverride 43695 | -3/Garrison | Triggered checkpoint 44324 | -3/Garrison | Garrison Relay disabled 44506 | -3/Garrison | Triggered checkpoint 44732 | -3/Garrison | Lost 3 parts (1n1u1w) 44966 | -3/Garrison | Build established: Commander-Mutant 45002 | -3/Garrison | Triggered checkpoint 45094 | -3/Garrison | Triggered checkpoint 45205 | -3/Garrison | Discovered new exit (range 15) 45243 | -3/Garrison | Entered Research 45243 | -2/Research | Accompanied by 3 allies 45243 | -2/Research | Evolved 2 slots: Utility x2 45481 | -2/Research | Spotted B-90 Cyclops 45546 | -2/Research | Build established: Scavenger-Mutant 45663 | -2/Research | P-80 Master assimilated allied Warden 8f 45700 | -2/Research | Lost 3 parts (1p2n) 47183 | -2/Research | Found Prototype Slashing Weapon 47183 | -2/Research | Identified Vibroblade 47187 | -2/Research | Found Faulty Vibroblade 47191 | -2/Research | Found Vibroblade 47197 | -2/Research | Found Vibroblade 47213 | -2/Research | Build established: Mutant 48029 | -2/Research | Build established: Botlord-Mutant 48790 | -2/Research | Spotted B-90 Cyclops 49085 | -2/Research | Found Unknown Device 49085 | -2/Research | Identified Launcher Loader 49153 | -2/Research | Discovered new exit (range 12) 49423 | -2/Research | Repaired Energy Well 49583 | -2/Research | P-80 Master assimilated allied Eye 9a 49586 | -2/Research | System corruption reached 10% 49931 | -2/Research | Discovered new exit (range 10) 50201 | -2/Research | Lost 3 parts (2n1u) 51237 | -2/Research | Discovered new exit (range 5) 51368 | -2/Research | Repaired Imp. Heavy Siege Treads 52180 | -2/Research | Garrison activated, responded to threat 52237 | -2/Research | Identified exit to Garrison 52257 | -2/Research | Entered Garrison 52266 | -2/Garrison | Expanded RIF knowledge: Watcher Feeds 52350 | -2/Garrison | Triggered checkpoint 52420 | -2/Garrison | P-80 Master assimilated allied Swordsman 9b 52458 | -2/Garrison | Garrison Relay disabled 52583 | -2/Garrison | Spotted B-90 Cyclops 52596 | -2/Garrison | Triggered checkpoint 52597 | -2/Garrison | Triggered checkpoint 52856 | -2/Garrison | Core integrity fell below 50% 52891 | -2/Garrison | Destroyed B-90 Cyclops 52915 | -2/Garrison | Lost 4 parts (1n2u1w) 53029 | -2/Garrison | Discovered new exit (range 5) 53078 | -2/Garrison | Triggered checkpoint 53098 | -2/Garrison | Garrison Relay disabled 53176 | -2/Garrison | Triggered checkpoint 53214 | -2/Garrison | Triggered checkpoint 53397 | -2/Garrison | Discovered new exit (range 5) 53438 | -2/Garrison | Triggered checkpoint 53469 | -2/Garrison | Garrison Relay disabled 53666 | -2/Garrison | Garrison Relay disabled 53721 | -2/Garrison | Discovered new exit (range 15) 53947 | -2/Garrison | Entered Access 53947 | -1/Access | Accompanied by 2 allies 53947 | -1/Access | Evolved 2 slots: Utility x2 53972 | -1/Access | Found Vibroblade 54433 | -1/Access | Identified exit to Garrison 54496 | -1/Access | Garrison activated, responded to threat 54503 | -1/Access | Entered Garrison 54503 | -1/Garrison | Accompanied by 1 ally 54734 | -1/Garrison | Triggered checkpoint 54747 | -1/Garrison | Garrison Relay disabled 54839 | -1/Garrison | Lost 3 parts (1p2u) 54875 | -1/Garrison | Found Unknown Device 54875 | -1/Garrison | Identified Antimissile System 55290 | -1/Garrison | Spotted B-99 Colossus 55295 | -1/Garrison | Assimilated Colossus 10a with formatsys_high 55324 | -1/Garrison | Triggered checkpoint 55339 | -1/Garrison | Triggered checkpoint 55399 | -1/Garrison | Discovered new exit (range 8) 55483 | -1/Garrison | Garrison Relay disabled 55503 | -1/Garrison | Triggered checkpoint 55702 | -1/Garrison | Discovered new exit (range 5) 56146 | -1/Garrison | Triggered checkpoint 56259 | -1/Garrison | Discovered new exit (range 15) 56293 | -1/Garrison | Expanded RIF knowledge: Crosswire 56346 | -1/Garrison | Triggered checkpoint 56408 | -1/Garrison | Garrison Relay disabled 56538 | -1/Garrison | Triggered checkpoint 56573 | -1/Garrison | Garrison Relay disabled 57512 | -1/Garrison | Entered Access 57512 | -1/Access | Accompanied by 8 allies 57832 | -1/Access | Lost 4 parts (1u3w) 57871 | -1/Access | Self-destructed Last Messages --------------- 57863_ Penetrated by Slug. 57863_ Slug penetrates H-88 Terminator. 57865_ Slug penetrates Wall. 57865_ Penetrated by Slug. 57865_ Adv. Heat Sink destroyed. 57865_ Penetrated by Slug. 57866_ H-88 Terminator destroyed. 57866_ Penetrated by Slug. 57866_ Relay Coupler [Sentry] destroyed. 57867_ Critical hit (Destroy). 57867_ Imp. Heavy Treads destroyed. 57867_ Penetrated by Slug. 57867_ Lgt. Quantum Reactor destroyed. 57867_ U-05 Engineer builds a Wall. 57868_ Slug penetrates Wall. 57868_ Acquired 55 matter. 57870_ Penetrated by Slug. 57870_ U-05 Engineer destroyed. 57870_ Penetrated by Slug. 57870_ Slug penetrates H-88 Terminator. Map ----- +----------------------------------------------------+ | ??# #### % % # ** ???????????????? | | ??######+########## % # ??????????????? | | ????# % % % #? ?????????????? | | ????# %% % #? ??????????????? | | ????# = % #? ???????????????? | | ????+ "= % % # ?????g??????????? | | ????# "Y %% # ?????????????????? | | ????# """ |% =# *% ??????????????? | | ????# % %[###+##############?????? | | ????# %% %%% *%*%!== !% ????? | | ????# % %=%%* ????? | | ????# % H %!!| % ????? | | ????# k = =%[ ????? | | ????# =% ????? | | ????# ?????? | | ????# ?????? | | ????########""Y""## ! #################??????? | | ???????????#"""""##=!! #??????????????????????? | | ???????????########!%! #??????????????????????? | | ??????????????????# ! ##############?????????? | | ??????????????????# # #?????????? | | ??????????????????#t # #?????????? | | ??????????????????# # ! #?????????? | | ??????????????????# hh# #?????????? | | ???????????? ""???# !h# #?????????? | | ?????????? """ # h@#! #?????????? | | ????????? " + %=! " #?????????? | | ??????? # !# """" ???????????? | | ????????????????= # # """"" ?????????????? | | ???????????????? ?# # """"??????????????? | | ??????????????????######### """"??????????????? | | ??????????????????????????# " ?????????????? | | ??????????????????????????###########????????????? | | ?????????????????????????????????????????????????? | | ?????????????????????????????????????????????????? | | ?????????????????????????????????????????????????? | | ?????????????????????????????????????????????????? | | ?????????????????????????????????????????????????? | | ?????????????????????????????????????????????????? | | ?????????????????????????????????????????????????? | | ?????????????????????????????????????????????????? | | ?????????????????????????????????????????????????? | | ?????????????????????????????????????????????????? | | ?????????????????????????????????????????????????? | | ?????????????????????????????????????????????????? | | ?????????????????????????????????????????????????? | | | | | | | | | +----------------------------------------------------+ Best States ------------- Heat Dissipation 109 Coolant Potential 100 Energy Generation 49 Energy Capacity 950 Matter Stores 300 Matter Capacity 500 Sight Range 16 Robot Scan Range 14 Terrain Scan Range 16 Terrain Scan Density 210 Cloak Strength 4 EM Shielding 6 Corruption Block 20 Armor Coverage 1200 Resistance: KI 30 Resistance: TH 15 Resistance: EM 15 Core Shielding 20 Point Defense Rating 240 Weapon Cycling 25 Phase Shifting 15 Evasion (%) 55 Targeting Accuracy 18 Melee Accuracy 10 Launcher Accuracy 40 Target Analysis 12 Armor Integrity Analysis 40 Recoil Reduction 4 Kinecelleration 30 Relay Coupler Types 10 Relay Coupler Value 180 Trap Extractor Capacity 6 Item Schematics ----------------- Imp. Shield Generator | -8/Materials | Scanalyzed Imp. Trap Extractor | -8/Materials | Scanalyzed Huge Storage Unit | -5/Factory | Scanalyzed Robot Schematics ------------------ None Fabricated ------------ K-01 Serf | x1 | -6/Factory | Preloaded Alien Tech Used ----------------- None Achievements -------------- None Challenges ------------ None Game ------ Seed CryofiberBehemothLauncher Manual? 0 Play Time 04:00:22 Cumulative 254.5 hours Start 2022.07.18 @ 20:44:52 End 2022.07.19 @ 21:22:40 Sessions 11 Manual Loads 0 Difficulty Rogue Special Mode None Game No. 358 Rogue 336 Adventurer 4 Explorer 18 Win Type - Total 10 Types 8/0/0/2/0/0/0/0/0 Lore% 70 Gallery% 89 Achievement% 72 Wizard Run 0 Options --------- ASCII 0 Keyboard 1 Movement Numpad Keybinds 0 Fullscreen 1 Font 18/SmallcapsGlow Map View 76x50 Tactical HUD 1 Map Filters NONE Filters NONE Steam 1 RUN: 669aa9d2-4566-48e7-801c-b401d17be5d6